{"text_format":"3","workbook":"xlsx","n_sheets":5,"sheets":["Information","Content","A-NAACCR Abstract","D-Deletion Record","S-Follow-Up Record"],"not_rendered":{"defined_names":9},"read":"whole","date_system":"1900"}

{"sheet":"Information","index":0,"n_rows":6,"n_cols":2,"rows_kept":6}
["Source","Volume II. Standards for Automated Reporting"]
["Author","California Cancer Registry, Cancer Informatics and IT Systems Unit"]
["Report Date","2025-01-05"]
["Version","Version 26"]
["Contact","CDSRBHelp@cdph.ca.gov> "]
["CCR Standards on Reporting Cancer in California",{"$f":"HYPERLINK(\"https://www.ccrcal.org/submit-data/cancer-registrars-hospitals-and-facilities/reporting-by-cancer-registrars/#volumes-anchor\", \"https://www.ccrcal.org/submit-data/cancer-registrars-hospitals-and-facilities/reporting-by-cancer-registrars/#volumes-anchor\")","v":"https://www.ccrcal.org/submit-data/cancer-registrars-hospitals-and-facilities/reporting-by-cancer-registrars/#volumes-anchor"}]

{"sheet":"Content","index":1,"n_rows":5,"n_cols":2,"rows_kept":5}
["Table of Contents"]
["Table","Description"]
["Appendix A","Appendix A: New Case and Modified Record Items (NAACCR Version 26.0)"]
["Appendix D","Appendix D: Deletion Record"]
["Appendix S","Appendix S: Shared Follow-Up Record Layout"]

{"sheet":"A-NAACCR Abstract","index":2,"n_rows":874,"n_cols":11,"rows_kept":874,"merged":[[0,0,0,10]]}
["Appendix A: New Case and Modified Record Items (NAACCR Version 26.0)"]
["Item Name","XML NAACCR ID","Parent\nXML Element","Section","NAACCR Item #","Length","Update Triggers\nModified Record","CCR Required from \nReporting Facility Software","CCR Requirement Status Notes","Supplied by \nCCR","Revision Notes"]
["Ambiguous Terminology DX","ambiguousTerminologyDx","Tumor","Cancer Identification",442,1,"yes","conditional","Not required for DX Years < 2007 and DX Years > 2012\nRequired for DX Years 2007 - 2012"]
["Behavior (92-00) ICD-O-2","behaviorIcdO2","Tumor","Cancer Identification",430,1,"yes","conditional","Required for DX Year < 2001",null,"Item 430 is a subset of item 419."]
["Behavior Code ICD-O-3","behaviorCodeIcdO3","Tumor","Cancer Identification",523,1,"yes","yes",null,null,"Item 523 is a subset of item 521."]
["Casefinding Source","casefindingSource","Tumor","Cancer Identification",501,2,"yes","yes"]
["Date Conclusive DX","dateConclusiveDx","Tumor","Cancer Identification",443,8,"yes","conditional","Not required for DX Years < 2007 and DX Years > 2012\nRequired for DX Years 2007 - 2012"]
["Date of Diagnosis","dateOfDiagnosis","Tumor","Cancer Identification",390,8,"yes","yes"]
["Date of Mult Tumors","dateOfMultTumors","Tumor","Cancer Identification",445,8,"yes","conditional","Not required for DX Years < 2007 and DX Years > 2012\nRequired for DX Years 2007 - 2012"]
["Diagnostic Confirmation","diagnosticConfirmation","Tumor","Cancer Identification",490,1,"yes","yes"]
["Grade","grade","Tumor","Cancer Identification",440,1,"yes","conditional","Required for DX Year < 2018"]
["Grade Path System","gradePathSystem","Tumor","Cancer Identification",449,1,"yes","conditional","Schema related, not required for \nDX Year < 2010 and > 2015"]
["Grade Path Value","gradePathValue","Tumor","Cancer Identification",441,1,"yes","conditional","Schema related, not required for \nDX Year < 2010 and > 2015"]
["Histologic Type ICD-O-3","histologicTypeIcdO3","Tumor","Cancer Identification",522,4,"yes","yes",null,null,"Item 522 is a subset of item 521"]
["Histology (92-00) ICD-O-2","histologyIcdO2","Tumor","Cancer Identification",420,4,"yes","conditional","Required for DX Year < 2001",null,"Item 420 is a subset of Item 419."]
["Laterality","laterality","Tumor","Cancer Identification",410,1,"yes","yes"]
["Morph Coding Sys--Current","morphCodingSysCurrent","Tumor","Cancer Identification",470,1,"no","no",null,"gen for extract"]
["Morph Coding Sys--Originl","morphCodingSysOriginl","Tumor","Cancer Identification",480,1,"no","no",null,"gen for extract"]
["Mult Tum Rpt as One Prim","multTumRptAsOnePrim","Tumor","Cancer Identification",444,2,"yes","conditional","Not required for DX Years < 2007 and DX Years > 2012\nRequired for DX Years 2007 - 2012"]
["Multiplicity Counter","multiplicityCounter","Tumor","Cancer Identification",446,2,"yes","conditional","Not required for DX Years < 2007 and DX Years > 2012\nRequired for DX Years 2007 - 2012"]
["Primary Site","primarySite","Tumor","Cancer Identification",400,4,"yes","yes"]
["Sequence Number--Central","sequenceNumberCentral","Tumor","Cancer Identification",380,2,"no","no",null,"gen in db"]
["Site Coding Sys--Current","siteCodingSysCurrent","Tumor","Cancer Identification",450,1,"no","no",null,"gen for extract"]
["Site Coding Sys--Original","siteCodingSysOriginal","Tumor","Cancer Identification",460,1,"no","no",null,"gen for extract"]
["Type of Reporting Source","typeOfReportingSource","Tumor","Cancer Identification",500,1,"yes","yes"]
["Addr at DX--City","addrAtDxCity","Tumor","Demographic",70,50,"yes","yes"]
["Addr at DX--Country","addrAtDxCountry","Tumor","Demographic",102,3,"yes","yes"]
["Addr at DX--Postal Code","addrAtDxPostalCode","Tumor","Demographic",100,9,"yes","yes"]
["Addr at DX--State","addrAtDxState","Tumor","Demographic",80,2,"yes","yes"]
["Addr Current--Country","addrCurrentCountry","Patient","Demographic",1832,3,"yes","yes"]
["Age at Diagnosis","ageAtDiagnosis","Tumor","Demographic",230,3,"no","yes, gen by facility",null,"gen on demand"]
["Birthplace--Country","birthplaceCountry","Patient","Demographic",254,3,"yes","yes"]
["Birthplace--State","birthplaceState","Patient","Demographic",252,2,"yes","yes"]
["Census Block Group 2000","censusBlockGroup2000","Tumor","Demographic",362,1,"no","no","4-character length in central system, but 1-character NAACCR XML base dictionary length for data exchanges","geocoding","Item 365 is a subset of item 352"]
["Census Block Group 2010","censusBlockGroup2010","Tumor","Demographic",363,1,"no","no","4-character length in central system, but 1-character NAACCR XML base dictionary length for data exchanges","geocoding","Item 363 is a subset of item 353"]
["Census Block Group 2020","censusBlockGroup2020","Tumor","Demographic",361,1,"no","no","4-character length in central system, but 1-character NAACCR XML base dictionary length for data exchanges","geocoding","Item 361 is a subset of item 354"]
["Census Block Grp 1970/80/90","censusBlockGrp197090","Tumor","Demographic",368,1,"no","no",null,"geocoding","Item 368 is a subset of item 351"]
["Census Cod Sys 1970/80/90","censusCodSys19708090","Tumor","Demographic",120,1,"no","no",null,"gen for extract"]
["Census Ind Code CDC","censusIndCode2010","Tumor","Demographic",272,4,"no","no",null,"no","2025: Renamed"]
["Census Occ Code CDC","censusOccCode2010","Tumor","Demographic",282,4,"no","no",null,"no","2025: Renamed"]
["Census Tr Cert 1970/80/90","censusTrCert19708090","Tumor","Demographic",364,1,"no","no",null,"geocoding"]
["Census Tr Certainty 2000","censusTrCertainty2000","Tumor","Demographic",365,1,"no","no",null,"geocoding"]
["Census Tr Certainity 2010","censusTrCertainty2010","Tumor","Demographic",367,1,"no","no",null,"geocoding"]
["Census Tr Poverty Indictr","censusTrPovertyIndictr","Tumor","Demographic",145,1,"no","no",null,"gen for extract"]
["Census Tract 1970/80/90","censusTract19708090","Tumor","Demographic",110,6,"no","no",null,"geocoding","Item 110 is a subset of item 351"]
["Census Tract 2000","censusTract2000","Tumor","Demographic",130,6,"no","no",null,"geocoding","Item 130 is a subset of item 352"]
["Census Tract 2010","censusTract2010","Tumor","Demographic",135,6,"no","no",null,"geocoding","Item 135 is a subset of item 353"]
["Census Tract 2020","censusTract2020","Tumor","Demographic",125,6,"no","no",null,"geocoding","Item 125 is a subset of item 354"]
["Census Tract Certainty 2020","censusTractCertainty2020","Tumor","Demographic",369,1,"no","no",null,"geocoding"]
["Computed Ethnicity","computedEthnicity","Patient","Demographic",200,1,"no","no",null,"gen for extract"]
["Computed Ethnicity Source","computedEthnicitySource","Patient","Demographic",210,1,"no","no",null,"gen for extract"]
["County at DX Analysis","countyAtDxAnalysis","Tumor","Demographic",89,3,"no","no",null,"gen for extract"]
["County at DX Geocode 1970/80/90","countyAtDxGeocode1990","Tumor","Demographic",94,3,"no","no",null,"geocoding","Item 94 is a subset of item 351"]
["County at DX Geocode2000","countyAtDxGeocode2000","Tumor","Demographic",95,3,"no","no",null,"geocoding","Item 95 is a subset of item 352"]
["County at DX Geocode2010","countyAtDxGeocode2010","Tumor","Demographic",96,3,"no","no",null,"geocoding","Item 96 is a subset of item 353"]
["County at DX Geocode2020","countyAtDxGeocode2020","Tumor","Demographic",97,3,"no","no",null,"geocoding","Item 97 is a subset of item 354"]
["County at DX Reported","countyAtDx","Tumor","Demographic",90,3,"yes","yes"]
["Date of Birth","dateOfBirth","Patient","Demographic",240,8,"yes","yes"]
["EDP MDE Link","edpMdeLink","Tumor","Demographic",531,1,"no","no",null,"link external","Item 530 is subset of item 3720."]
["EDP MDE Link Date","edpMdeLinkDate","Tumor","Demographic",530,8,"no","no",null,"link external","Item 531 is subset of item 3720."]
["Followup Contact--Country","followupContactCountry","Tumor","Demographic",1847,3,"yes","yes"]
["Geocoding Accuracy Score","geocodingAccuracyScore","Tumor","Demographic",331,4,"no","no",null,"geocoding","2026: new"]
["Geocoding Accuracy Type","geocodingAccuracyType","Tumor","Demographic",332,21,"no","no",null,"geocoding","2026: new"]
["Geocoding Quality Code","geocodingQualityCode","Tumor","Demographic",86,1,"no","no",null,"gen in db"]
["Geocoding Quality Code Detail ","geocodingQualityCodeDetail","Tumor","Demographic",87,14,"no","no",null,"gen in db"]
["GIS Coordinate Quality","gisCoordinateQuality","Tumor","Demographic",366,2,"no","no",null,"geocoding"]
["IHS Link","ihsLink","Patient","Demographic",192,1,"no","no",null,"link with IHS DB"]
["IHS Purchased/Referred Care Delivery Area","ihsPurchRefCareDeliveryArea","Tumor","Demographic",194,1,"no","no",null,"gen for extract"]
["Industry Source","industrySource","Tumor","Demographic",300,1,"no","no",null,"gen for extract"]
["Marital Status at DX","maritalStatusAtDx","Tumor","Demographic",150,1,"yes","yes"]
["NHIA Derived Hisp Origin","nhiaDerivedHispOrigin","Patient","Demographic",191,1,"no","no",null,"gen in db"]
["Occupation Source","occupationSource","Tumor","Demographic",290,1,"no","no",null,"gen for extract"]
["Place of Death--Country","placeOfDeathCountry","Patient","Demographic",1944,3,"yes","yes"]
["Place of Death--State","placeOfDeathState","Patient","Demographic",1942,2,"yes","yes"]
["Race 1","race1","Patient","Demographic",160,2,"yes","yes"]
["Race 2","race2","Patient","Demographic",161,2,"yes","yes"]
["Race 3","race3","Patient","Demographic",162,2,"yes","yes"]
["Race 4","race4","Patient","Demographic",163,2,"yes","yes"]
["Race 5","race5","Patient","Demographic",164,2,"yes","yes"]
["Race-NAPIIA (derived API)","raceNapiia","Patient","Demographic",193,2,"no","no",null,"gen in db"]
["RUCA 2000","ruca2000","Tumor","Demographic",339,1,"no","no",null,"geocoding"]
["RUCA 2010","ruca2010","Tumor","Demographic",341,1,"no","no",null,"geocoding"]
["RUCA 2020","ruca2020","Tumor","Demographic",342,1,"no","no",null,"geocoding","2026: new"]
["RuralUrban Continuum 1993","ruralurbanContinuum1993","Tumor","Demographic",3300,2,"no","no"]
["RuralUrban Continuum 2003","ruralurbanContinuum2003","Tumor","Demographic",3310,2,"no","no"]
["RuralUrban Continuum 2013","ruralurbanContinuum2013","Tumor","Demographic",3312,2,"no","no",null,"gen for extract"]
["Sex","sex","Patient","Demographic",220,1,"yes","yes","California will keep this item as State Specific Data Item and it will be included the XML User-Dictionary"]
["Sex Assigned at Birth","sexAssignedAtBirth","Patient","Demographic",225,1,"no","no",null,"gen in db","Sex Assigned at Birth [225] replaces the existing data item Sex [220] for all cases regardless of diagnosis year. Data in Sex [220] will be converted to populate Sex Assigned at Birth [225]"]
["Spanish/Hispanic Origin","spanishHispanicOrigin","Patient","Demographic",190,1,"yes","yes"]
["State at DX Geocode 1970/80/90","stateAtDxGeocode19708090","Tumor","Demographic",81,2,"no","no",null,"geocoding","Item 81 is a subset of item 351"]
["State at DX Geocode 2000","stateAtDxGeocode2000","Tumor","Demographic",82,2,"no","no",null,"geocoding","Item 82 is a subset of item 352"]
["State at DX Geocode 2010","stateAtDxGeocode2010","Tumor","Demographic",83,2,"no","no",null,"geocoding","Item 83 is a subset of item 353"]
["State at DX Geocode 2020","stateAtDxGeocode2020","Tumor","Demographic",84,2,"no","no",null,"geocoding","Item 84 is a subset of item 354"]
["Text--Usual Industry","textUsualIndustry","Tumor","Demographic",320,100,"yes","yes"]
["Text--Usual Occupation","textUsualOccupation","Tumor","Demographic",310,100,"yes","yes"]
["Tobacco Use Smoking Status","tobaccoUseSmokingStatus","Tumor","Demographic",344,1,"yes","conditional","Required if available for DX Year 2022 forward"]
["Urban Indian Organization (UIO) Service Area","uihoFacility","Tumor","Demographic",285,2,"no","no",null,"gen for extract"]
["Urban Indian Organization (UIO)","urbanIndianHealthOrganization","Tumor","Demographic",284,1,"no","no",null,"gen for extract"]
["URIC 2000","uric2000","Tumor","Demographic",345,1,"no","no",null,"geocoding"]
["URIC 2010","uric2010","Tumor","Demographic",346,1,"no","no",null,"geocoding"]
["URIC 2010","uric2020","Tumor","Demographic",347,1,"no","no",null,"geocoding","2026: new"]
["AJCC API Version Current","ajccApiVersionCurrent","Tumor","Edit Overrides/Conversion History/System Admin",2156,8,"yes","conditional","gen by facility if available for DX Year 2018 forward"]
["AJCC API Version Original","ajccApiVersionOriginal","Tumor","Edit Overrides/Conversion History/System Admin",2157,8,"no","conditional","gen by facility if available for DX Year 2018 forward"]
["AJCC Cancer Surveillance DLL Version Current","ajccCancerSurvApiVersionCurrent","Tumor","Edit Overrides/Conversion History/System Admin",2158,13,"yes","conditional","gen by facility if available for DX Year 2018 forward"]
["AJCC Cancer Surveillance DLL Version Original","ajccCancerSurvApiVersionOriginal","Tumor","Edit Overrides/Conversion History/System Admin",2159,13,"no","conditional","gen by facility if available for DX Year 2018 forward"]
["Behavior (73-91) ICD-O-1","behaviorIcdO1","Tumor","Edit Overrides/Conversion History/System Admin",1972,1,"no","no",null,null,"Item 1972 is a subset of item 1970."]
["CoC Accredited Flag","cocAccreditedFlag","Tumor","Edit Overrides/Conversion History/System Admin",2152,1,"yes","yes"]
["COC Coding Sys--Current","cocCodingSysCurrent","Tumor","Edit Overrides/Conversion History/System Admin",2140,2,"no","no",null,"gen for extract"]
["COC Coding Sys--Original","cocCodingSysOriginal","Tumor","Edit Overrides/Conversion History/System Admin",2150,2,"no","no",null,"gen for extract"]
["Date Case Completed","dateCaseCompleted","Tumor","Edit Overrides/Conversion History/System Admin",2090,8,"no","yes, gen by facility"]
["Date Case Completed--CoC","dateCaseCompletedCoc","Tumor","Edit Overrides/Conversion History/System Admin",2092,8,"no","no"]
["Date Case Initiated","dateCaseInitiated","Tumor","Edit Overrides/Conversion History/System Admin",2085,8,"no","yes, gen by facility"]
["Date Case Last Changed","dateCaseLastChanged","Tumor","Edit Overrides/Conversion History/System Admin",2100,8,"no","yes, gen by facility"]
["Date Case Report Exported","dateCaseReportExported","Tumor","Edit Overrides/Conversion History/System Admin",2110,8,"no","yes, gen by facility","Capture the export/transmit date for the original new case abstract and use this value with the each export/transmit date for each modified record thereafter to accommodate the SEER interpretation of this NAACCR field."]
["Date Case Report Loaded","dateCaseReportLoaded","Tumor","Edit Overrides/Conversion History/System Admin",2112,8,"no","no","DO NOT OVERWRITE ORIGINAL NEW CASE ABSTRACT'S VALUE WITH A MODIFIED RECORD'S VALUE.","gen in db"]
["Date Case Report Received","dateCaseReportReceived","Tumor","Edit Overrides/Conversion History/System Admin",2111,8,"no","no","DO NOT OVERWRITE ORIGINAL NEW CASE ABSTRACT'S VALUE WITH A MODIFIED RECORD'S VALUE.","gen in db"]
["Date Tumor Record Availbl","dateTumorRecordAvailbl","Tumor","Edit Overrides/Conversion History/System Admin",2113,8,"no","no",null,"gen in db"]
["Grade (73-91) ICD-O-1","gradeIcdO1","Tumor","Edit Overrides/Conversion History/System Admin",1973,1,"no","no",null,null,"Item 1973 is a subset of item 1970."]
["Histology (73-91) ICD-O-1","histologyIcdO1","Tumor","Edit Overrides/Conversion History/System Admin",1971,4,"no","no",null,null,"Item 1971 is a subset of item 1970."]
["ICD-O-3 Conversion Flag","icdO3ConversionFlag","Tumor","Edit Overrides/Conversion History/System Admin",2116,1,"yes","yes"]
["Over-ride Acsn/Class/Seq","overRideAcsnClassSeq","Tumor","Edit Overrides/Conversion History/System Admin",1985,1,"no","no"]
["Over-ride Age/Site/Morph","overRideAgeSiteMorph","Tumor","Edit Overrides/Conversion History/System Admin",1990,1,"yes","yes*"]
["Over-ride COC-Site/Type","overRideCocSiteType","Tumor","Edit Overrides/Conversion History/System Admin",1987,1,"no","no"]
["Over-ride CS 1","overRideCs1","Tumor","Edit Overrides/Conversion History/System Admin",3750,1,"no","no"]
["Over-ride CS 10","overRideCs10","Tumor","Edit Overrides/Conversion History/System Admin",3759,1,"no","no"]
["Over-ride CS 11","overRideCs11","Tumor","Edit Overrides/Conversion History/System Admin",3760,1,"no","no"]
["Over-ride CS 12","overRideCs12","Tumor","Edit Overrides/Conversion History/System Admin",3761,1,"no","no"]
["Over-ride CS 13","overRideCs13","Tumor","Edit Overrides/Conversion History/System Admin",3762,1,"no","no"]
["Over-ride CS 14","overRideCs14","Tumor","Edit Overrides/Conversion History/System Admin",3763,1,"no","no"]
["Over-ride CS 15","overRideCs15","Tumor","Edit Overrides/Conversion History/System Admin",3764,1,"no","no"]
["Over-ride CS 16","overRideCs16","Tumor","Edit Overrides/Conversion History/System Admin",3765,1,"no","no"]
["Over-ride CS 17","overRideCs17","Tumor","Edit Overrides/Conversion History/System Admin",3766,1,"no","no"]
["Over-ride CS 18","overRideCs18","Tumor","Edit Overrides/Conversion History/System Admin",3767,1,"no","no"]
["Over-ride CS 19","overRideCs19","Tumor","Edit Overrides/Conversion History/System Admin",3768,1,"no","no"]
["Over-ride CS 2","overRideCs2","Tumor","Edit Overrides/Conversion History/System Admin",3751,1,"no","no"]
["Over-ride CS 20","overRideCs20","Tumor","Edit Overrides/Conversion History/System Admin",3769,1,"no","no"]
["Over-ride CS 3","overRideCs3","Tumor","Edit Overrides/Conversion History/System Admin",3752,1,"no","no"]
["Over-ride CS 4","overRideCs4","Tumor","Edit Overrides/Conversion History/System Admin",3753,1,"no","no"]
["Over-ride CS 5","overRideCs5","Tumor","Edit Overrides/Conversion History/System Admin",3754,1,"no","no"]
["Over-ride CS 6","overRideCs6","Tumor","Edit Overrides/Conversion History/System Admin",3755,1,"no","no"]
["Over-ride CS 7","overRideCs7","Tumor","Edit Overrides/Conversion History/System Admin",3756,1,"no","no"]
["Over-ride CS 8","overRideCs8","Tumor","Edit Overrides/Conversion History/System Admin",3757,1,"no","no"]
["Over-ride CS 9","overRideCs9","Tumor","Edit Overrides/Conversion History/System Admin",3758,1,"no","no"]
["Over-ride Histology","overRideHistology","Tumor","Edit Overrides/Conversion History/System Admin",2040,1,"yes","yes*"]
["Over-ride HospSeq/DxConf","overRideHospseqDxconf","Tumor","Edit Overrides/Conversion History/System Admin",1986,1,"no","no"]
["Over-ride HospSeq/Site","overRideHospseqSite","Tumor","Edit Overrides/Conversion History/System Admin",1988,1,"yes","yes*"]
["Over-ride Ill-define Site","overRideIllDefineSite","Tumor","Edit Overrides/Conversion History/System Admin",2060,1,"yes","yes*"]
["Over-ride Leuk, Lymphoma","overRideLeukLymphoma","Tumor","Edit Overrides/Conversion History/System Admin",2070,1,"yes","yes*"]
["Over-ride Name/Sex Assigned at Birth","overRideNameSex","Patient","Edit Overrides/Conversion History/System Admin",2078,1,"yes","yes*",null,null,"2026: Renamed"]
["Over-ride Report Source","overRideReportSource","Tumor","Edit Overrides/Conversion History/System Admin",2050,1,"yes","yes*"]
["Over-ride SeqNo/DxConf","overRideSeqnoDxconf","Tumor","Edit Overrides/Conversion History/System Admin",2000,1,"no","no",null,"gen in db"]
["Over-ride Site/Behavior","overRideSiteBehavior","Tumor","Edit Overrides/Conversion History/System Admin",2071,1,"yes","yes*"]
["Over-ride Site/EOD/DX Dt","overRideSiteEodDxDt","Tumor","Edit Overrides/Conversion History/System Admin",2072,1,"yes","yes*"]
["Over-ride Site/Lat/EOD","overRideSiteLatEod","Tumor","Edit Overrides/Conversion History/System Admin",2073,1,"yes","yes*"]
["Over-ride Site/Lat/Morph","overRideSiteLatMorph","Tumor","Edit Overrides/Conversion History/System Admin",2074,1,"yes","yes*"]
["Over-ride Site/Lat/SeqNo","overRideSiteLatSeqno","Tumor","Edit Overrides/Conversion History/System Admin",2010,1,"yes","yes*"]
["Over-ride Site/TNM-StgGrp","overRideSiteTnmStggrp","Tumor","Edit Overrides/Conversion History/System Admin",1989,1,"yes","yes*"]
["Over-ride Site/Type","overRideSiteType","Tumor","Edit Overrides/Conversion History/System Admin",2030,1,"yes","yes*"]
["Over-ride SS/NodesPos","overRideSsNodespos","Tumor","Edit Overrides/Conversion History/System Admin",1981,1,"yes","yes*"]
["Over-ride SS/ TNM-M","overRideSsTnmM","Tumor","Edit Overrides/Conversion History/System Admin",1983,1,"yes","yes*"]
["Over-ride SS/ TNM-N","overRideSsTnmN","Tumor","Edit Overrides/Conversion History/System Admin",1982,1,"yes","yes*"]
["Over-ride Surg/DxConf","overRideSurgDxconf","Tumor","Edit Overrides/Conversion History/System Admin",2020,1,"yes","yes*"]
["Over-ride TNM 3","overRideTnm3","Tumor","Edit Overrides/Conversion History/System Admin",1994,1,"no","no"]
["Over-ride TNM Stage","overRideTnmStage","Tumor","Edit Overrides/Conversion History/System Admin",1992,1,"yes","yes*"]
["Over-ride TNM Tis","overRideTnmTis","Tumor","Edit Overrides/Conversion History/System Admin",1993,1,"yes","yes*"]
["Schema ID Version Current","schemaIdVersionCurrent","Tumor","Edit Overrides/Conversion History/System Admin",2117,5,"yes","conditional","gen by facility if available for DX Year 2018 forward","gen in db"]
["Schema ID Version Original","schemaIdVersionOriginal","Tumor","Edit Overrides/Conversion History/System Admin",2118,5,"no","conditional","gen by facility if available for DX Year 2018 forward","gen in db"]
["Site (73-91) ICD-O-1","siteIcdO1","Tumor","Edit Overrides/Conversion History/System Admin",1960,4,"no","no"]
["Vendor Name","vendorName","Tumor","Edit Overrides/Conversion History/System Admin",2170,10,"no","yes, gen by facility",null,"gen for extract"]
["Addr Current--City","addrCurrentCity","Patient","Follow-up/Recurrence/Death",1810,50,"yes","yes*"]
["Addr Current--Postal Code","addrCurrentPostalCode","Patient","Follow-up/Recurrence/Death",1830,9,"yes","yes*"]
["Addr Current--State","addrCurrentState","Patient","Follow-up/Recurrence/Death",1820,2,"yes","yes*"]
["Autopsy","autopsy","Patient","Follow-up/Recurrence/Death",1930,1,"no","no"]
["Cancer Status","cancerStatus","Tumor","Follow-up/Recurrence/Death",1770,1,"yes","yes"]
["Cause of Death","causeOfDeath","Patient","Follow-up/Recurrence/Death",1910,4,"no","no",null,"death clearance"]
["County--Current","countyCurrent","Patient","Follow-up/Recurrence/Death",1840,3,"no","no"]
["Date of Death--Canada","dateOfDeathCanada","Patient","Follow-up/Recurrence/Death",1755,8,"no","no"]
["Date of Last Cancer (tumor) Status","dateOfLastCancerStatus","Tumor","Follow-up/Recurrence/Death",1772,8,"yes","yes"]
["Date of Last Contact","dateOfLastContact","Patient","Follow-up/Recurrence/Death",1750,8,"yes","yes"]
["Follow-Up Contact--City","followUpContactCity","Tumor","Follow-up/Recurrence/Death",1842,50,"yes","yes*"]
["Follow-Up Contact--Postal","followUpContactPostal","Tumor","Follow-up/Recurrence/Death",1846,9,"yes","yes*"]
["Follow-Up Contact--State","followUpContactState","Tumor","Follow-up/Recurrence/Death",1844,2,"yes","yes*"]
["Follow-Up Source","followUpSource","Tumor","Follow-up/Recurrence/Death",1790,1,"no","no"]
["Follow-Up Source Central","followUpSourceCentral","Patient","Follow-up/Recurrence/Death",1791,2,"no","no",null,"gen for extract"]
["ICD Revision Number","icdRevisionNumber","Patient","Follow-up/Recurrence/Death",1920,1,"no","no",null,"gen for extract"]
["Next Follow-Up Source","nextFollowUpSource","Tumor","Follow-up/Recurrence/Death",1800,1,"no","no"]
["No Patient Contact Flag","noPatientContactFlag","Patient","Follow-up/Recurrence/Death",1854,1,"yes","yes"]
["Record Number Recode","recordNumberRecode","Tumor","Follow-up/Recurrence/Death",1775,2,"no","no",null,"gen for extract"]
["Recurrence Date--1st","recurrenceDate1st","Tumor","Follow-up/Recurrence/Death",1860,8,"yes","yes*"]
["Recurrence Type--1st","recurrenceType1st","Tumor","Follow-up/Recurrence/Death",1880,2,"yes","yes*"]
["Reporting facility restriction flag","reportingFacilityRestrictionFlag","Tumor","Follow-up/Recurrence/Death",1856,2,"no","no",null,"gen for extract"]
["SEER Cause Specific COD","seerCauseSpecificCod","Tumor","Follow-up/Recurrence/Death",1914,1,"no","no",null,"gen for extract"]
["SEER Other COD","seerOtherCod","Tumor","Follow-up/Recurrence/Death",1915,1,"no","no",null,"gen for extract"]
["Surv-Date Active Followup","survDateActiveFollowup","Tumor","Follow-up/Recurrence/Death",1782,8,"no","no",null,"gen for extract"]
["Surv-Date DX Recode","survDateDxRecode","Tumor","Follow-up/Recurrence/Death",1788,8,"no","no",null,"gen for extract"]
["Surv-Date Presumed Alive","survDatePresumedAlive","Tumor","Follow-up/Recurrence/Death",1785,8,"no","no",null,"gen for extract"]
["Surv-Flag Active Followup","survFlagActiveFollowup","Tumor","Follow-up/Recurrence/Death",1783,1,"no","no",null,"gen for extract"]
["Surv-Flag Presumed Alive","survFlagPresumedAlive","Tumor","Follow-up/Recurrence/Death",1786,1,"no","no",null,"gen for extract"]
["Surv-Mos Active Followup","survMosActiveFollowup","Tumor","Follow-up/Recurrence/Death",1784,4,"no","no",null,"gen for extract"]
["Surv-Mos Presumed Alive","survMosPresumedAlive","Tumor","Follow-up/Recurrence/Death",1787,4,"no","no",null,"gen for extract"]
["Unusual Follow-Up Method","unusualFollowUpMethod","Tumor","Follow-up/Recurrence/Death",1850,2,"no","no"]
["Vital Status","vitalStatus","Patient","Follow-up/Recurrence/Death",1760,1,"yes","yes"]
["Vital Status Recode","vitalStatusRecode","Patient","Follow-up/Recurrence/Death",1762,1,"no","no",null,"gen for extract"]
["Following Registry","followingRegistry","Tumor","Hospital-Confidential",2440,10,"no","no"]
["Institution Referred From","institutionReferredFrom","Tumor","Hospital-Confidential",2410,10,"yes","yes"]
["Institution Referred To","institutionReferredTo","Tumor","Hospital-Confidential",2420,10,"yes","yes"]
["NPI--Following Registry","npiFollowingRegistry","Tumor","Hospital-Confidential",2445,10,"no","no"]
["NPI--Inst Referred From","npiInstReferredFrom","Tumor","Hospital-Confidential",2415,10,"yes","yes*"]
["NPI--Inst Referred To","npiInstReferredTo","Tumor","Hospital-Confidential",2425,10,"yes","yes*"]
["Abstracted By","abstractedBy","Tumor","Hospital-Specific",570,3,"yes","yes"]
["Accession Number--Hosp","accessionNumberHosp","Tumor","Hospital-Specific",550,9,"yes","yes"]
["Archive FIN","archiveFin","Tumor","Hospital-Specific",3100,10,"no","no"]
["Class of Case","classOfCase","Tumor","Hospital-Specific",610,2,"yes","yes"]
["Date of 1st Contact","dateOf1stContact","Tumor","Hospital-Specific",580,8,"yes","yes"]
["Date of Inpt Adm","dateOfInptAdm","Tumor","Hospital-Specific",590,8,"yes","yes"]
["Date of Inpt Disch","dateOfInptDisch","Tumor","Hospital-Specific",600,8,"yes","yes"]
["NPI--Archive FIN","npiArchiveFin","Tumor","Hospital-Specific",3105,10,"no","no"]
["NPI--Reporting Facility","npiReportingFacility","Tumor","Hospital-Specific",545,10,"yes","yes*"]
["Primary Payer at DX","primaryPayerAtDx","Tumor","Hospital-Specific",630,2,"no","no","No longer required. Derived from Pay Source 1","gen in db"]
["Reporting Facility","reportingFacility","Tumor","Hospital-Specific",540,10,"yes","yes"]
["RX Hosp--BRM","rxHospBrm","Tumor","Hospital-Specific",720,2,"yes","yes"]
["RX Hosp--Chemo","rxHospChemo","Tumor","Hospital-Specific",700,2,"yes","yes"]
["RX Hosp--DX/Stg Proc","rxHospDxStgProc","Tumor","Hospital-Specific",740,2,"yes","yes*"]
["RX Hosp--Hormone","rxHospHormone","Tumor","Hospital-Specific",710,2,"yes","yes"]
["RX Hosp--Other","rxHospOther","Tumor","Hospital-Specific",730,1,"yes","yes"]
["RX Hosp--Palliative Proc","rxHospPalliativeProc","Tumor","Hospital-Specific",3280,1,"no","no"]
["RX Hosp--Radiation","rxHospRadiation","Tumor","Hospital-Specific",690,1,"no","no"]
["RX Hosp--Recon Breast","rxHospReconBreast","Tumor","Hospital-Specific",751,4,"yes","conditional","Required for DX Year 2024 forward"]
["RX Hosp--Reg LN Removed","rxHospRegLnRemoved","Tumor","Hospital-Specific",676,2,"no","no"]
["RX Hosp--Scope Reg 98-02","rxHospScopeReg9802","Tumor","Hospital-Specific",747,1,"no","no"]
["RX Hosp--Scope Reg LN Sur","rxHospScopeRegLnSur","Tumor","Hospital-Specific",672,1,"yes","yes"]
["RX Hosp--Surg App 2010","rxHospSurgApp2010","Tumor","Hospital-Specific",668,1,"no","no"]
["RX Hosp--Surg Oth 98-02","rxHospSurgOth9802","Tumor","Hospital-Specific",748,1,"no","no"]
["RX Hosp--Surg Oth Reg/Dis","rxHospSurgOthRegDis","Tumor","Hospital-Specific",674,1,"yes","yes"]
["RX Hosp--Surg Prim Site 03-2022","rxHospSurgPrimSite","Tumor","Hospital-Specific",670,2,"yes","conditional","Required for DX Year 2003-2022"]
["RX Hosp--Surg Prim Site 2023","rxHospSurgPrimSite2023","Tumor","Hospital-Specific",671,4,"yes","conditional","Required for DX Year 2023 forward"]
["RX Hosp--Surg Site 98-02","rxHospSurgSite9802","Tumor","Hospital-Specific",746,2,"no","no"]
["Sequence Number--Hospital","sequenceNumberHospital","Tumor","Hospital-Specific",560,2,"yes","yes"]
["EHR Reporting","ehrReporting","Tumor","Other-Confidential",2508,4000,"no","no"]
["NPI--Physician 3","npiPhysician3","Tumor","Other-Confidential",2495,10,"yes","yes*"]
["NPI--Physician 4","npiPhysician4","Tumor","Other-Confidential",2505,10,"yes","yes*"]
["NPI--Physician--Follow-Up","npiPhysicianFollowUp","Tumor","Other-Confidential",2475,10,"yes","yes*"]
["NPI--Physician--Managing","npiPhysicianManaging","Tumor","Other-Confidential",2465,10,"yes","yes*"]
["NPI--Physician--Primary Surg","npiPhysicianPrimarySurg","Tumor","Other-Confidential",2485,10,"yes","yes*"]
["Physician 3","physician3","Tumor","Other-Confidential",2490,8,"yes","yes*"]
["Physician 4","physician4","Tumor","Other-Confidential",2500,8,"yes","yes*"]
["Physician--Follow-Up","physicianFollowUp","Tumor","Other-Confidential",2470,8,"yes","yes*"]
["Physician--Managing","physicianManaging","Tumor","Other-Confidential",2460,8,"yes","yes"]
["Physician--Primary Surg","physicianPrimarySurg","Tumor","Other-Confidential",2480,8,"yes","yes*"]
["Path Date Spec Collect 1","pathDateSpecCollect1","Tumor","Pathology",7320,25,"yes","yes*","Date/time format: YYYY-MM-DDThh:mm:ss+zz:zz\t",null,"2025: Changed to date/time field, so length increased to 25 and format requirement added"]
["Path Date Spec Collect 2","pathDateSpecCollect2","Tumor","Pathology",7321,25,"yes","yes*","Date/time format: YYYY-MM-DDThh:mm:ss+zz:zz\t",null,"2025: Changed to date/time field, so length increased to 25 and format requirement added"]
["Path Date Spec Collect 3","pathDateSpecCollect3","Tumor","Pathology",7322,25,"yes","yes*","Date/time format: YYYY-MM-DDThh:mm:ss+zz:zz\t",null,"2025: Changed to date/time field, so length increased to 25 and format requirement added"]
["Path Date Spec Collect 4","pathDateSpecCollect4","Tumor","Pathology",7323,25,"yes","yes*","Date/time format: YYYY-MM-DDThh:mm:ss+zz:zz\t",null,"2025: Changed to date/time field, so length increased to 25 and format requirement added"]
["Path Date Spec Collect 5","pathDateSpecCollect5","Tumor","Pathology",7324,25,"yes","yes*","Date/time format: YYYY-MM-DDThh:mm:ss+zz:zz\t",null,"2025: Changed to date/time field, so length increased to 25 and format requirement added"]
["Path Order Phys Lic No 1","pathOrderPhysLicNo1","Tumor","Pathology",7100,20,"no","no"]
["Path Order Phys Lic No 2","pathOrderPhysLicNo2","Tumor","Pathology",7101,20,"no","no"]
["Path Order Phys Lic No 3","pathOrderPhysLicNo3","Tumor","Pathology",7102,20,"no","no"]
["Path Order Phys Lic No 4","pathOrderPhysLicNo4","Tumor","Pathology",7103,20,"no","no"]
["Path order Phys Lic No 5","pathOrderPhysLicNo5","Tumor","Pathology",7104,20,"no","no"]
["Path Ordering Fac No 1","pathOrderingFacNo1","Tumor","Pathology",7190,25,"no","no"]
["Path Ordering Fac No 2","pathOrderingFacNo2","Tumor","Pathology",7191,25,"no","no"]
["Path Ordering Fac No 3","pathOrderingFacNo3","Tumor","Pathology",7192,25,"no","no"]
["Path Ordering Fac No 4","pathOrderingFacNo4","Tumor","Pathology",7193,25,"no","no"]
["Path Ordering Fac No 5","pathOrderingFacNo5","Tumor","Pathology",7194,25,"no","no"]
["Path Report Number 1","pathReportNumber1","Tumor","Pathology",7090,20,"yes","yes*"]
["Path Report Number 2","pathReportNumber2","Tumor","Pathology",7091,20,"yes","yes*"]
["Path Report Number 3","pathReportNumber3","Tumor","Pathology",7092,20,"yes","yes*"]
["Path Report Number 4","pathReportNumber4","Tumor","Pathology",7093,20,"yes","yes*"]
["Path Report Number 5","pathReportNumber5","Tumor","Pathology",7094,20,"yes","yes*"]
["Path Report Type 1","pathReportType1","Tumor","Pathology",7480,2,"yes","yes*"]
["Path Report Type 2","pathReportType2","Tumor","Pathology",7481,2,"yes","yes*"]
["Path Report Type 3","pathReportType3","Tumor","Pathology",7482,2,"yes","yes*"]
["Path Report Type 4","pathReportType4","Tumor","Pathology",7483,2,"yes","yes*"]
["Path Report Type 5","pathReportType5","Tumor","Pathology",7484,2,"yes","yes*"]
["Path Reporting Fac ID 1","pathReportingFacId1","Tumor","Pathology",7010,25,"yes","yes*"]
["Path Reporting Fac ID 2","pathReportingFacId2","Tumor","Pathology",7011,25,"yes","yes*"]
["Path Reporting Fac ID 3","pathReportingFacId3","Tumor","Pathology",7012,25,"yes","yes*"]
["Path Reporting Fac ID 4","pathReportingFacId4","Tumor","Pathology",7013,25,"yes","yes*"]
["Path Reporting Fac ID 5","pathReportingFacId5","Tumor","Pathology",7014,25,"yes","yes*"]
["Addr at DX--No & Street","addrAtDxNoStreet","Tumor","Patient-Confidential",2330,60,"yes","yes"]
["Addr at DX--Supplementl","addrAtDxSupplementl","Tumor","Patient-Confidential",2335,60,"yes","yes*"]
["Addr Current--No & Street","addrCurrentNoStreet","Patient","Patient-Confidential",2350,60,"yes","yes*"]
["Addr Current--Supplementl","addrCurrentSupplementl","Patient","Patient-Confidential",2355,60,"yes","yes*"]
["DC State File Number","dcStateFileNumber","Patient","Patient-Confidential",2380,12,"no","no",null,"death clearance"]
["Follow-Up Contact--Name","followUpContactName","Tumor","Patient-Confidential",2394,60,"yes","yes*"]
["Follow-Up Contact--No&St","followUpContactNost","Tumor","Patient-Confidential",2392,60,"yes","yes*"]
["Follow-Up Contact--Suppl","followUpContactSuppl","Tumor","Patient-Confidential",2393,60,"yes","yes*"]
["Latitude","latitude","Tumor","Patient-Confidential",2352,10,"no","no",null,"geocoding"]
["Longitude","longitude","Tumor","Patient-Confidential",2354,11,"no","no",null,"geocoding"]
["Medical Record Number","medicalRecordNumber","Tumor","Patient-Confidential",2300,15,"yes","yes*"]
["Medicare Beneficiary Identifier","medicareBeneficiaryIdentifier","Patient","Patient-Confidential",2315,11,"yes","yes*"]
["Name--Alias Last","nameAlias","Patient","Patient-Confidential",2280,40,"yes","yes*"]
["Name--Birth Surname","nameBirthSurname","Patient","Patient-Confidential",2232,40,"yes","yes"]
["Name--First","nameFirst","Patient","Patient-Confidential",2240,40,"yes","yes"]
["Name--Last","nameLast","Patient","Patient-Confidential",2230,40,"yes","yes"]
["Name--Middle","nameMiddle","Patient","Patient-Confidential",2250,40,"yes","yes"]
["Name--Prefix","namePrefix","Patient","Patient-Confidential",2260,3,"no","no"]
["Name--Spouse/Parent","nameSpouseParent","Tumor","Patient-Confidential",2290,60,"no","no"]
["Name--Suffix","nameSuffix","Patient","Patient-Confidential",2270,3,"yes","yes*"]
["Social Security Number","socialSecurityNumber","Patient","Patient-Confidential",2320,9,"yes","yes"]
["Telephone","telephone","Patient","Patient-Confidential",2360,10,"yes","yes*"]
["NAACCR Record Version [260] - Shouldn't be transmitted in the data file as it will be defined in the NAACCR base dictionary referenced in the data file","naaccrVersion","NaaccrDictionary element in NAACCR base dictionary","Record ID",50,3,"no","no \n(identified in referenced base dictionary instead)","The record version should be identified via the naaccrVersion attribute of the root NaaccrDictionary element in the NAACCR base dictionary referenced by the data file rather than including  a naaccrRecordVersion child item element within the data file's root/parent NaaccrData element.","gen for extract","2026: Record Version number updated to 260 to reflect NAACCR v26. "]
["NPI--Registry ID","npiRegistryId","NaaccrData","Record ID",45,10,"no","yes*"]
["Patient ID Number","patientIdNumber","Patient","Record ID",20,8,"no","no",null,"gen in db"]
["Patient System ID-Hosp","patientSystemIdHosp","Tumor","Record ID",21,8,"no","no"]
["Record Type [A for new cases, M for modified records] - must be transmitted as an attribute of NaaccrData element, not within an Item element","recordType","NaaccrData","Record ID",10,1,"no","yes, gen by facility",null,"gen for extract","The record type should be transmitted as an attribute of the root/parent NaaccrData element rather than transmitting it as a child item element of the root/parent NaaccrData element."]
["Registry ID","registryId","NaaccrData","Record ID",40,10,"no","yes, gen by facility",null,"gen for extract"]
["Registry Type","registryType","NaaccrData","Record ID",30,1,"no","no"]
["Tumor Record Number","tumorRecordNumber","Tumor","Record ID",60,2,"no","no",null,"gen in db"]
["Central Admission Number","centralAdmissionNumber","Tumor","Special Use",80006,8,"no","no",null,"gen in db"]
["Coding Proc [40]","codingProc","Tumor","Special Use",70000,2,"yes","yes, gen by facility","DO NOT CHANGE NEW CASE ABSTRACT'S ORIGINAL VALUE IN MODIFIED RECORDS",null,"2026: Coding Procedure updated to 40 for 2026 data changes"]
["Contact Name","contactName","Patient","Special Use",70001,60,"yes","yes*"]
["Date Surg Proc (1)","dateSurgProc1","Tumor","Special Use",70002,8,"yes","yes*"]
["Date Surg Proc (2)","dateSurgProc2","Tumor","Special Use",70004,8,"yes","yes*"]
["Date Surg Proc (3)","dateSurgProc3","Tumor","Special Use",70006,8,"yes","yes*"]
["DC Birth Place","dcBirthPlace","Patient","Special Use",80015,3,"no","no","captured from DC records in central system","death clearance"]
["DC Father's Surname","dcFathersSurname","Patient","Special Use",80016,40,"no","no","captured from DC records in central system","death clearance"]
["DC Race","dcRace","Patient","Special Use",80017,2,"no","no","captured from DC records in central system","death clearance"]
["DC Spanish Origin","dcSpanishOrigin","Patient","Special Use",80018,1,"no","no","captured from DC records in central system","death clearance"]
["DC SSN","dcSsn","Patient","Special Use",80019,9,"no","no","captured from DC records in central system","death clearance"]
["Death File No St","deathFileNoSt","Patient","Special Use",80020,2,"no","no",null,"death clearance"]
["Discovered by Screening","discoveredByScreening","Tumor","Special Use",70008,1,"yes","yes*"]
["Doc ID","docId","Tumor","Special Use",80021,10,"no","no",null,"historical"]
["Follow-Up Last Type (Patient)","followUpLastTypePatient","Patient","Special Use",70010,2,"yes","yes"]
["Follow-Up Last Type (Tumor)","followUpLastTypeTumor","Tumor","Special Use",70011,2,"yes","yes"]
["Follow-Up Next Type","followUpNextType","Patient","Special Use",70012,1,"yes","yes*"]
["Height","height","Tumor","Special Use",9960,2,"yes","conditional","Required for DX Year 2011 forward",null,"Item 9960 is subset of item 3720.  Renamed."]
["Hosp Pat No","hospPatNo","Patient","Special Use",70013,12,"yes","yes"]
["Hospital Tumor Number CCR","hospitalTumorNumberCcr","Tumor","Special Use",70014,2,"yes","yes"]
["Last Follow-Up Hospital","lastFollowUpHospital","Patient","Special Use",2430,10,"yes","yes"]
["Name Alias 1 (AKANAME1)","nameAlias1","Patient","Special Use",80026,40,"no","no",null,"gen in db"]
["Name Alias 2 (AKANAME 2)","nameAlias2","Patient","Special Use",80027,40,"no","no",null,"gen in db"]
["Name Alias 3 (AKANAME 3)","nameAlias3","Patient","Special Use",80028,40,"no","no",null,"gen in db"]
["Name Alias 4 (AKANAME 4)","nameAlias4","Patient","Special Use",80029,40,"no","no",null,"gen in db"]
["Name Alias 5 (AKANAME 5)","nameAlias5","Patient","Special Use",80030,40,"no","no",null,"gen in db"]
["Name Alias-Flag 1 (AKAFLAG1)","nameAliasFlag1","Patient","Special Use",80031,1,"no","no",null,"gen in db"]
["Name Alias-Flag 2 (AKAFLAG 2)","nameAliasFlag2","Patient","Special Use",80032,1,"no","no",null,"gen in db"]
["Name Alias-Flag 3 (AKAFLAG 3)","nameAliasFlag3","Patient","Special Use",80033,1,"no","no",null,"gen in db"]
["Name Alias-Flag 4 (AKAFLAG 4)","nameAliasFlag4","Patient","Special Use",80034,1,"no","no",null,"gen in db"]
["Name Alias-Flag 5 (AKAFLAG 5)","nameAliasFlag5","Patient","Special Use",80035,1,"no","no",null,"gen in db"]
["Name--Alias First","nameAliasFirst","Patient","Special Use",70016,40,"yes","yes*"]
["Name--Mother First","nameMotherFirst","Patient","Special Use",70017,40,"yes","yes*"]
["NCDB--COVID19--Tx Impact","ncdbCovid19TxImpact","Tumor","Special Use",3946,1,"yes","conditional","Required if available DX Year 2020 - 2021",null,"NAACCR field, but still in Special Use section, so not CA-specific"]
["NCDB--SARSCoV2--Pos","ncdbSarsCov2Pos","Patient","Special Use",3944,1,"yes","conditional","Required if available DX Year 2020 - 2021",null,"NAACCR field, but still in Special Use section, so not CA-specific"]
["NCDB--SARSCoV2--Pos Date","ncdbSarsCov2PosDate","Patient","Special Use",3945,8,"yes","conditional","Required if available DX Year 2020 - 2021",null,"NAACCR field, but still in Special Use section, so not CA-specific"]
["NCDB--SARSCoV2--Test","ncdbSarsCov2Test","Patient","Special Use",3943,1,"yes","conditional","Required if available DX Year 2020 - 2021",null,"NAACCR field, but still in Special Use section, so not CA-specific"]
["NPI--Physician Other 1","npiPhysicianOther1","Tumor","Special Use",70018,10,"yes","yes*"]
["NPI--Physician Other 2","npiPhysicianOther2","Tumor","Special Use",70019,10,"yes","yes*"]
["Over-ride Admis DX","overRideAdmisDx","Tumor","Special Use",70020,1,"yes","yes*"]
["Over-ride Race BPL","overRideRaceBpl","Patient","Special Use",70021,1,"yes","yes*"]
["Over-ride Site Stage","overRideSiteStage","Tumor","Special Use",70022,1,"yes","yes*"]
["Over-ride Spanish BPL","overRideSpanishBpl","Patient","Special Use",70023,1,"yes","yes*"]
["Pay Source 1","paySource1","Tumor","Special Use",70072,2,"yes","yes*",null,null,"Added back in Special Use section as CA-specific item for consistency. The NAACCR Item Primary Payer at DX is no longer required"]
["Pay Source 2","paySource2","Tumor","Special Use",70025,2,"yes","yes*"]
["Payment Source Text","paymentSourceText","Tumor","Special Use",70026,40,"yes","yes"]
["Physician Other 1","physicianOther1","Tumor","Special Use",70027,8,"yes","yes*"]
["Physician Other 2","physicianOther2","Tumor","Special Use",70028,8,"yes","yes*"]
["Physician Referring","physicianReferring","Tumor","Special Use",70029,8,"yes","yes*"]
["Protocol Participation","protocolParticipation","Tumor","Special Use",1480,2,"yes","yes"]
["Reg Pat No","regPatNo","Patient","Special Use",80041,8,"no","no",null,"historical","Historical for CA cases"]
["Reg Tum No","regTumNo","Tumor","Special Use",80042,2,"no","no",null,"historical","Historical for CA cases"]
["Reg-Data 06","regData06","Tumor","Special Use",70036,2,"yes","yes*"]
["Region ID","regionId","Tumor","Special Use",70041,2,"no","yes, gen by facility"]
["Religion","religion","Tumor","Special Use",260,2,"yes","yes"]
["RX Date Transp Endo","rxDateTranspEndo","Tumor","Special Use",70043,8,"yes","yes"]
["RX Text--Surgery (1)","rxTextSurgery1","Tumor","Special Use",70066,1333,"yes","yes*",null,null,"RX Text--Surgery officially split into three 333-character items for CA, 1 for each surgical procedure, and moved to Special Use section"]
["RX Text--Surgery (2)","rxTextSurgery2","Tumor","Special Use",70067,1333,"yes","yes*",null,null,"RX Text--Surgery officially split into three 333-character items for CA, 1 for each surgical procedure, and moved to Special Use section"]
["RX Text--Surgery (3)","rxTextSurgery3","Tumor","Special Use",70068,1333,"yes","yes*",null,null,"RX Text--Surgery officially split into three 333-character items for CA, 1 for each surgical procedure, and moved to Special Use section"]
["Scope LN Proc (1)","scopeLnProc1","Tumor","Special Use",70045,1,"yes","yes"]
["Scope LN Proc (2)","scopeLnProc2","Tumor","Special Use",70046,1,"yes","yes"]
["Scope LN Proc (3)","scopeLnProc3","Tumor","Special Use",70047,1,"yes","yes"]
["SourceComorbidity","sourceComorbidity","Tumor","Special Use",9970,1,"yes","conditional","Required for DX Year 2011 forward",null,"2026: Retired"]
["SSN Suffix","ssnSuffix","Patient","Special Use",70048,2,"yes","yes*"]
["Surg Other Proc (1)","surgOtherProc1","Tumor","Special Use",70050,1,"yes","yes"]
["Surg Other Proc (2)","surgOtherProc2","Tumor","Special Use",70051,1,"yes","yes"]
["Surg Other Proc (3)","surgOtherProc3","Tumor","Special Use",70052,1,"yes","yes"]
["Surg Prim Proc 03-2022 (1)","surgPrimProc1","Tumor","Special Use",70053,2,"yes","conditional","Required for DX Year 2003-2022"]
["Surg Prim Proc 03-2022 (2)","surgPrimProc2","Tumor","Special Use",70054,2,"yes","conditional","Required for DX Year 2003-2022"]
["Surg Prim Proc 03-2022 (3)","surgPrimProc3","Tumor","Special Use",70055,2,"yes","conditional","Required for DX Year 2003-2022"]
["Surg Prim Proc 2023 (1)","surgPrimProc20231","Tumor","Special Use",70069,4,"yes","conditional","Required for DX Year 2023 forward"]
["Surg Prim Proc 2023 (2)","surgPrimProc20232","Tumor","Special Use",70070,4,"yes","conditional","Required for DX Year 2023 forward"]
["Surg Prim Proc 2023 (3)","surgPrimProc20233","Tumor","Special Use",70071,4,"yes","conditional","Required for DX Year 2023 forward"]
["Text Final DX","textFinalDx","Tumor","Special Use",70056,100,"yes","yes",null,null,"SEER DMS NAACCR ID 7450 and name as TEXT_PATH_FORMAL_DX"]
["Tobacco Use Cigarettes","tobaccoUseCigarettes","Tumor","Special Use",9965,1,"yes","conditional","Required for DX Years 2011-2021",null,"Item 9965 is subset of item 3720.  renamed"]
["Tobacco Use NOS","tobaccoUseNos","Tumor","Special Use",9968,1,"yes","conditional","Required for DX Year 2011 forward",null,"Item 9968 is subset of item 3720.  renamed"]
["Tobacco Use Other Smoke","tobaccoUseOtherSmoke","Tumor","Special Use",9966,1,"yes","conditional","Required for DX Years 2011-2021",null,"Item 9966 is subset of item 3720.  renamed"]
["Tobacco Use Smokeless","tobaccoUseSmokeless","Tumor","Special Use",9967,1,"yes","conditional","Required for DX Year 2011 forward",null,"Item 9967 is subset of item 3720.  renamed"]
["Transmit Vendor Version","transmitVendorVersion","Tumor","Special Use",70057,10,"yes","yes, gen by facility",null,"gen on demand"]
["Transp Endo Hosp","transpEndoHosp","Tumor","Special Use",70058,2,"yes","yes*"]
["Treatment Hospital Number Procedure 1","treatmentHospitalNumberProc1","Tumor","Special Use",70059,10,"yes","yes"]
["Treatment Hospital Number Procedure 2","treatmentHospitalNumberProc2","Tumor","Special Use",70060,10,"yes","yes"]
["Treatment Hospital Number Procedure 3","treatmentHospitalNumberProc3","Tumor","Special Use",70061,10,"yes","yes"]
["Tumor Marker CA 1","tumorMarkerCa1","Tumor","Special Use",70062,1,"yes","conditional","Required for Breast cases only, DX Year < 2004"]
["Type Admis","typeAdmis","Tumor","Special Use",70063,1,"yes","yes"]
["Vendor License Number","vendorLicenseNumber","Tumor","Special Use",70064,10,"yes","yes, gen by facility"]
["Weight","weight","Tumor","Special Use",9961,3,"yes","conditional","Required for DX Year 2011 forward",null,"Item 9961 is subset of item 3720."]
["Year First Seen","yearFirstSeen","Tumor","Special Use",620,4,"yes","yes"]
["Adenoid Cystic Basaloid Pattern","adenoidCysticBasaloidPattern","Tumor","Stage/Prognostic Factors",3803,5,"yes","conditional","Required, CoC Only Site Specific for DX Year 2018 forward"]
["Adenopathy","adenopathy","Tumor","Stage/Prognostic Factors",3804,1,"yes","conditional","Required, Site Specific for DX Year 2018 forward"]
["AFP Post-Orchiectomy Lab Value","afpPostOrchiectomyLabValue","Tumor","Stage/Prognostic Factors",3805,7,"yes","conditional","Required, CoC Only for DX Year 2018 forward"]
["AFP Post-Orchiectomy Range","afpPostOrchiectomyRange","Tumor","Stage/Prognostic Factors",3806,1,"yes","conditional","Required, CoC Only Site Specific for DX Year 2018 forward"]
["AFP Pre-Orchiectomy Lab Value","afpPreOrchiectomyLabValue","Tumor","Stage/Prognostic Factors",3807,7,"yes","conditional","Required, CoC Only for DX Year 2018 forward"]
["AFP Pre-Orchiectomy Range","afpPreOrchiectomyRange","Tumor","Stage/Prognostic Factors",3808,1,"yes","conditional","Required, CoC Only Site Specific for DX Year 2018 forward"]
["AFP Pretreatment Interpretation","afpPretreatmentInterpretation","Tumor","Stage/Prognostic Factors",3809,1,"yes","conditional","Required, CoC Only for DX Year 2018 forward"]
["AFP Pretreatment Lab Value","afpPretreatmentLabValue","Tumor","Stage/Prognostic Factors",3810,6,"yes","conditional","Required, CoC Only for DX Year 2018 forward"]
["AJCC ID","ajccId","Tumor","Stage/Prognostic Factors",995,4,"yes","conditional","Required for DX Year 2018 and forward"]
["AJCC TNM Clin M","ajccTnmClinM","Tumor","Stage/Prognostic Factors",1003,15,"yes","conditional","Required, CoC Only for DX Year 2018 forward"]
["AJCC TNM Clin N","ajccTnmClinN","Tumor","Stage/Prognostic Factors",1002,15,"yes","conditional","Required, CoC Only for DX Year 2018 forward"]
["AJCC TNM Clin N Suffix","ajccTnmClinNSuffix","Tumor","Stage/Prognostic Factors",1034,4,"yes","conditional","Required, CoC Only for DX Year 2018 forward"]
["AJCC TNM Clin Stage Group","ajccTnmClinStageGroup","Tumor","Stage/Prognostic Factors",1004,15,"yes","conditional","Required, CoC Only for DX Year 2018 forward"]
["AJCC TNM Clin T","ajccTnmClinT","Tumor","Stage/Prognostic Factors",1001,15,"yes","conditional","Required, CoC Only for DX Year 2018 forward"]
["AJCC TNM Clin T Suffix","ajccTnmClinTSuffix","Tumor","Stage/Prognostic Factors",1031,4,"yes","conditional","Required, CoC Only for DX Year 2018 forward"]
["AJCC TNM Path M","ajccTnmPathM","Tumor","Stage/Prognostic Factors",1013,15,"yes","conditional","Required, CoC Only for DX Year 2018 forward"]
["AJCC TNM Path N","ajccTnmPathN","Tumor","Stage/Prognostic Factors",1012,15,"yes","conditional","Required, CoC Only for DX Year 2018 forward"]
["AJCC TNM Path N Suffix","ajccTnmPathNSuffix","Tumor","Stage/Prognostic Factors",1035,4,"yes","conditional","Required, CoC Only for DX Year 2018 forward"]
["AJCC TNM Path Stage Group","ajccTnmPathStageGroup","Tumor","Stage/Prognostic Factors",1014,15,"yes","conditional","Required, CoC Only for DX Year 2018 forward"]
["AJCC TNM Path T","ajccTnmPathT","Tumor","Stage/Prognostic Factors",1011,15,"yes","conditional","Required, CoC Only for DX Year 2018 forward"]
["AJCC TNM Path T Suffix","ajccTnmPathTSuffix","Tumor","Stage/Prognostic Factors",1032,4,"yes","conditional","Required, CoC Only for DX Year 2018 forward"]
["AJCC TNM Post Therapy Clin (yc) M","ajccTnmPostTherapyClinM","Tumor","Stage/Prognostic Factors",1066,15,"yes","conditional","Required, CoC Only for DX Year 2021 forward"]
["AJCC TNM Post Therapy Clin (yc) N","ajccTnmPostTherapyClinN","Tumor","Stage/Prognostic Factors",1064,15,"yes","conditional","Required, CoC Only for DX Year 2021 forward"]
["AJCC TNM Post Therapy Clin (yc) N Suffix","ajccTnmPostTherapyClinNSuffix","Tumor","Stage/Prognostic Factors",1065,4,"yes","conditional","Required, CoC Only for DX Year 2021 forward"]
["AJCC TNM Post Therapy Clin (yc) Stage Group","ajccTnmPostTherapyClinStageGrp","Tumor","Stage/Prognostic Factors",1067,15,"yes","conditional","Required, CoC Only for DX Year 2021 forward"]
["AJCC TNM Post Therapy Clin (yc) T","ajccTnmPostTherapyClinT","Tumor","Stage/Prognostic Factors",1062,15,"yes","conditional","Required, CoC Only for DX Year 2021 forward"]
["AJCC TNM Post Therapy Clin (yc) T Suffix","ajccTnmPostTherapyClinTSuffix","Tumor","Stage/Prognostic Factors",1063,4,"yes","conditional","Required, CoC Only for DX Year 2021 forward"]
["AJCC TNM Post Therapy Path (yp) M","ajccTnmPostTherapyM","Tumor","Stage/Prognostic Factors",1023,15,"yes","conditional","Required, CoC Only for DX Year 2018 forward"]
["AJCC TNM Post Therapy Path (yp) N","ajccTnmPostTherapyN","Tumor","Stage/Prognostic Factors",1022,15,"yes","conditional","Required, CoC Only for DX Year 2018 forward"]
["AJCC TNM Post Therapy Path (yp) N Suffix","ajccTnmPostTherapyNSuffix","Tumor","Stage/Prognostic Factors",1036,4,"yes","conditional","Required, CoC Only for DX Year 2018 forward"]
["AJCC TNM Post Therapy Path (yp) Stage Group","ajccTnmPostTherapyStageGroup","Tumor","Stage/Prognostic Factors",1024,15,"yes","conditional","Required, CoC Only for DX Year 2018 forward"]
["AJCC TNM Post Therapy Path (yp) T","ajccTnmPostTherapyT","Tumor","Stage/Prognostic Factors",1021,15,"yes","conditional","Required, CoC Only for DX Year 2018 forward"]
["AJCC TNM Post Therapy Path (yp) T Suffix","ajccTnmPostTherapyTSuffix","Tumor","Stage/Prognostic Factors",1033,4,"yes","conditional","Required, CoC Only for DX Year 2018 forward"]
["ALK Rearrangement","alkRearrangement","Tumor","Stage/Prognostic Factors",3938,1,"yes","conditional","Required for DX Year 2021 forward"]
["Anemia","anemia","Tumor","Stage/Prognostic Factors",3811,1,"yes","conditional","Required, Site Specific for DX Year 2018 forward"]
["B symptoms","bSymptoms","Tumor","Stage/Prognostic Factors",3812,1,"yes","conditional","Required, Site Specific for DX Year 2018 forward"]
["Bilirubin Pretreatment Total Lab Value","bilirubinPretxTotalLabValue","Tumor","Stage/Prognostic Factors",3813,5,"yes","conditional","Required, CoC Only for DX Year 2018 forward"]
["Bilirubin Pretreatment Unit of Measure","bilirubinPretxUnitOfMeasure","Tumor","Stage/Prognostic Factors",3814,1,"yes","conditional","Required, CoC Only for DX Year 2018 forward"]
["Bone Invasion","boneInvasion","Tumor","Stage/Prognostic Factors",3815,1,"yes","conditional","Required, CoC Only Site Specific for DX Year 2018 forward"]
["BRAF Mutational Analysis","brafMutationalAnalysis","Tumor","Stage/Prognostic Factors",3940,1,"yes","conditional","Required for DX Year 2021 forward"]
["Brain Molecular Markers","brainMolecularMarkers","Tumor","Stage/Prognostic Factors",3816,2,"yes","conditional","Required, Site Specific for DX Year 2018 forward"]
["Brain Primary Tumor Location ","brainPrimaryTumorLocation","Tumor","Stage/Prognostic Factors",3964,1,"yes","conditional","Required, Site Specific for DX Year 2024 forward"]
["Breslow Tumor Thickness","breslowTumorThickness","Tumor","Stage/Prognostic Factors",3817,4,"yes","conditional","Required, Site Specific for DX Year 2018 forward"]
["CA 19-9 PreTX Lab Value","ca199PretxLabValue","Tumor","Stage/Prognostic Factors",3942,6,"yes","conditional","Required for DX Year 2021 forward"]
["CA-125 Pretreatment Interpretation","ca125PretreatmentInterpretation","Tumor","Stage/Prognostic Factors",3818,1,"yes","conditional","Required, Site Specific for DX Year 2018 forward"]
["CEA Pretreatment Intrepretation","ceaPretreatmentInterpretation","Tumor","Stage/Prognostic Factors",3819,1,"yes","conditional","Required, Site Specific for DX Year 2018 forward"]
["CEA Pretreatment Lab Value","ceaPretreatmentLabValue","Tumor","Stage/Prognostic Factors",3820,6,"yes","conditional","Required, Site Specific for DX Year 2018 forward"]
["Chromosome 16q: Loss of Heterozygosity","chromosome16qLossHeterozygosity","Tumor","Stage/Prognostic Factors",1189,1,"yes","conditional","Required if available, Site Specific for DX Year 2024 forward",null,"2025: New"]
["Chromosome 19q: Loss of Heterozygosity (LOH)","chromosome19qLossHeterozygosity","Tumor","Stage/Prognostic Factors",3802,1,"yes","conditional","Required, Site Specific for DX Year 2018 forward"]
["Chromosome 1p: Loss of Heterozygosity (LOH)","chromosome1pLossHeterozygosity","Tumor","Stage/Prognostic Factors",3801,1,"yes","conditional","Required, Site Specific for DX Year 2018 forward"]
["Chromosome 1q Status","chromosome1qStatus","Tumor","Stage/Prognostic Factors",1190,1,"yes","conditional","Required if available, Site Specific for DX Year 2024 forward",null,"2025: New"]
["Chromosome 3 Status","chromosome3Status","Tumor","Stage/Prognostic Factors",3821,1,"yes","conditional","Required, CoC Only Site Specific for DX Year 2018-2025"]
["Chromosome 8q Status","chromosome8qStatus","Tumor","Stage/Prognostic Factors",3822,1,"yes","conditional","Required, CoC Only Site Specific for DX Year 2018-2025"]
["Circumferential Resection Margin (CRM)","circumferentialResectionMargin","Tumor","Stage/Prognostic Factors",3823,4,"yes","conditional","Required, Site Specific for DX Year 2018 forward"]
["Clinical Margin Width","clinicalMarginWidth","Tumor","Stage/Prognostic Factors",3961,4,"yes","conditional","Required, CoC Only Site Specific for DX Year 2023 forward"]
["Coding System for EOD","codingSystemForEod","Tumor","Stage/Prognostic Factors",870,1,"no","no",null,"gen for extract"]
["Comorbid/ Complication 1","comorbidComplication1","Tumor","Stage/Prognostic Factors",3110,5,"yes","yes",null,null,"2026: Retired"]
["Comorbid/ Complication 10","comorbidComplication10","Tumor","Stage/Prognostic Factors",3164,5,"yes","yes*",null,null,"2026: Retired"]
["Comorbid/ Complication 2","comorbidComplication2","Tumor","Stage/Prognostic Factors",3120,5,"yes","yes*",null,null,"2026: Retired"]
["Comorbid/ Complication 3","comorbidComplication3","Tumor","Stage/Prognostic Factors",3130,5,"yes","yes*",null,null,"2026: Retired"]
["Comorbid/ Complication 4","comorbidComplication4","Tumor","Stage/Prognostic Factors",3140,5,"yes","yes*",null,null,"2026: Retired"]
["Comorbid/ Complication 5","comorbidComplication5","Tumor","Stage/Prognostic Factors",3150,5,"yes","yes*",null,null,"2026: Retired"]
["Comorbid/ Complication 6","comorbidComplication6","Tumor","Stage/Prognostic Factors",3160,5,"yes","yes*",null,null,"2026: Retired"]
["Comorbid/ Complication 7","comorbidComplication7","Tumor","Stage/Prognostic Factors",3161,5,"yes","yes*",null,null,"2026: Retired"]
["Comorbid/ Complication 8","comorbidComplication8","Tumor","Stage/Prognostic Factors",3162,5,"yes","yes*",null,null,"2026: Retired"]
["Comorbid/ Complication 9","comorbidComplication9","Tumor","Stage/Prognostic Factors",3163,5,"yes","yes*",null,null,"2026: Retired"]
["Creatinine Pretreatment Lab Value","creatininePretreatmentLabValue","Tumor","Stage/Prognostic Factors",3824,4,"yes","conditional","Required, CoC Only for DX Year 2018 forward"]
["Creatinine Pretreatment Unit of Measure","creatininePretxUnitOfMeasure","Tumor","Stage/Prognostic Factors",3825,1,"yes","conditional","Required, CoC Only for DX Year 2018 forward"]
["CS Extension","csExtension","Tumor","Stage/Prognostic Factors",2810,3,"yes","conditional","Required for DX Year 2004 - 2015"]
["CS Lymph Nodes","csLymphNodes","Tumor","Stage/Prognostic Factors",2830,3,"yes","conditional","Required for DX Year 2004 - 2015"]
["CS Lymph Nodes Eval","csLymphNodesEval","Tumor","Stage/Prognostic Factors",2840,1,"yes","conditional","Required for DX Year 2004 - 2015"]
["CS Mets at DX","csMetsAtDx","Tumor","Stage/Prognostic Factors",2850,2,"yes","conditional","Required for DX Year 2004 - 2015"]
["CS Mets at Dx-Bone","csMetsAtDxBone","Tumor","Stage/Prognostic Factors",2851,1,"yes","conditional","Required for DX Year 2004 - 2015"]
["CS Mets at Dx-Brain","csMetsAtDxBrain","Tumor","Stage/Prognostic Factors",2852,1,"yes","conditional","Required for DX Year 2004 - 2015"]
["CS Mets at Dx-Liver","csMetsAtDxLiver","Tumor","Stage/Prognostic Factors",2853,1,"yes","conditional","Required for DX Year 2004 - 2015"]
["CS Mets at Dx-Lung","csMetsAtDxLung","Tumor","Stage/Prognostic Factors",2854,1,"yes","conditional","Required for DX Year 2004 - 2015"]
["CS Mets Eval","csMetsEval","Tumor","Stage/Prognostic Factors",2860,1,"yes","conditional","Required for DX Year 2004 - 2015"]
["CS Site-Specific Factor 1","csSiteSpecificFactor1","Tumor","Stage/Prognostic Factors",2880,3,"yes","conditional","Required, Site Specific for DX Year 2004 - 2017"]
["CS Site-Specific Factor 2","csSiteSpecificFactor2","Tumor","Stage/Prognostic Factors",2890,3,"yes","conditional","Required, Site Specific for DX Year 2004 - 2017"]
["CS Site-Specific Factor 3","csSiteSpecificFactor3","Tumor","Stage/Prognostic Factors",2900,3,"yes","conditional","Required, Site Specific for DX Year 2004 - 2017"]
["CS Site-Specific Factor 4","csSiteSpecificFactor4","Tumor","Stage/Prognostic Factors",2910,3,"yes","conditional","Required, Site Specific for DX Year 2004 - 2017"]
["CS Site-Specific Factor 5","csSiteSpecificFactor5","Tumor","Stage/Prognostic Factors",2920,3,"yes","conditional","Required, Site Specific for DX Year 2004 - 2017"]
["CS Site-Specific Factor 6","csSiteSpecificFactor6","Tumor","Stage/Prognostic Factors",2930,3,"yes","conditional","Required, Site Specific for DX Year 2004 - 2017"]
["CS Site-Specific Factor 7","csSiteSpecificFactor7","Tumor","Stage/Prognostic Factors",2861,3,"yes","conditional","Required, Site Specific for DX Year 2004 - 2017"]
["CS Site-Specific Factor 8","csSiteSpecificFactor8","Tumor","Stage/Prognostic Factors",2862,3,"yes","conditional","Required, Site Specific for DX Year 2004 - 2017"]
["CS Site-Specific Factor 9","csSiteSpecificFactor9","Tumor","Stage/Prognostic Factors",2863,3,"yes","conditional","Required, Site Specific for DX Year 2004 - 2017"]
["CS Site-Specific Factor 10","csSiteSpecificFactor10","Tumor","Stage/Prognostic Factors",2864,3,"yes","conditional","Required, Site Specific for DX Year 2004 - 2017"]
["CS Site-Specific Factor 11","csSiteSpecificFactor11","Tumor","Stage/Prognostic Factors",2865,3,"yes","conditional","Required, Site Specific for DX Year 2004 - 2017"]
["CS Site-Specific Factor 12","csSiteSpecificFactor12","Tumor","Stage/Prognostic Factors",2866,3,"yes","conditional","Required, Site Specific for DX Year 2004 - 2017"]
["CS Site-Specific Factor 13","csSiteSpecificFactor13","Tumor","Stage/Prognostic Factors",2867,3,"yes","conditional","Required, Site Specific for DX Year 2004 - 2017"]
["CS Site-Specific Factor 14","csSiteSpecificFactor14","Tumor","Stage/Prognostic Factors",2868,3,"yes","conditional","Required, Site Specific for DX Year 2004 - 2017"]
["CS Site-Specific Factor 15","csSiteSpecificFactor15","Tumor","Stage/Prognostic Factors",2869,3,"yes","conditional","Required, Site Specific for DX Year 2004 - 2017"]
["CS Site-Specific Factor 16","csSiteSpecificFactor16","Tumor","Stage/Prognostic Factors",2870,3,"yes","conditional","Required, Site Specific for DX Year 2004 - 2017"]
["CS Site-Specific Factor 17","csSiteSpecificFactor17","Tumor","Stage/Prognostic Factors",2871,3,"yes","conditional","Required, Site Specific for DX Year 2004 - 2017"]
["CS Site-Specific Factor 18","csSiteSpecificFactor18","Tumor","Stage/Prognostic Factors",2872,3,"yes","conditional","Required, Site Specific for DX Year 2004 - 2017"]
["CS Site-Specific Factor 19","csSiteSpecificFactor19","Tumor","Stage/Prognostic Factors",2873,3,"yes","conditional","Required, Site Specific for DX Year 2004 - 2017"]
["CS Site-Specific Factor 20","csSiteSpecificFactor20","Tumor","Stage/Prognostic Factors",2874,3,"yes","conditional","Required, Site Specific for DX Year 2004 - 2017"]
["CS Site-Specific Factor 21","csSiteSpecificFactor21","Tumor","Stage/Prognostic Factors",2875,3,"yes","conditional","Required, Site Specific for DX Year 2004 - 2017"]
["CS Site-Specific Factor 22","csSiteSpecificFactor22","Tumor","Stage/Prognostic Factors",2876,3,"yes","conditional","Required, Site Specific for DX Year 2004 - 2017"]
["CS Site-Specific Factor 23","csSiteSpecificFactor23","Tumor","Stage/Prognostic Factors",2877,3,"yes","conditional","Required, Site Specific for DX Year 2004 - 2017"]
["CS Site-Specific Factor 24","csSiteSpecificFactor24","Tumor","Stage/Prognostic Factors",2878,3,"yes","conditional","Required, Site Specific for DX Year 2004 - 2017"]
["CS Site-Specific Factor 25","csSiteSpecificFactor25","Tumor","Stage/Prognostic Factors",2879,3,"yes","conditional","Required, Site Specific for DX Year 2004 - 2017"]
["CS Tumor Size","csTumorSize","Tumor","Stage/Prognostic Factors",2800,3,"yes","conditional","Required for DX Year 2004 - 2015"]
["CS Tumor Size/Ext Eval","csTumorSizeExtEval","Tumor","Stage/Prognostic Factors",2820,1,"yes","conditional","Required for DX Year 2004 - 2015"]
["CS Version Derived","csVersionDerived","Tumor","Stage/Prognostic Factors",2936,6,"yes","conditional","Required for DX Year 2004 - 2015"]
["CS Version Input Current","csVersionInputCurrent","Tumor","Stage/Prognostic Factors",2937,6,"yes","conditional","Required for DX Year 2004 - 2017"]
["CS Version Input Original","csVersionInputOriginal","Tumor","Stage/Prognostic Factors",2935,6,"yes","conditional","Required for DX Year 2004 - 2017"]
["Date of Sentinel Lymph Node Biopsy","dateSentinelLymphNodeBiopsy","Tumor","Stage/Prognostic Factors",832,8,"yes","conditional","Required for DX Year 2018 and forward for Melamona of Skin and Breast"]
["Date Regional Lymph Node Dissection","dateRegionalLNDissection","Tumor","Stage/Prognostic Factors",682,8,"yes","conditional","Required, CoC Only for DX Year 2018 forward"]
["Derived AJCC-6 M","derivedAjcc6M","Tumor","Stage/Prognostic Factors",2980,2,"yes","conditional","Required for DX Year 2004 - 2015"]
["Derived AJCC-6 M Descript","derivedAjcc6MDescript","Tumor","Stage/Prognostic Factors",2990,1,"yes","conditional","Required for DX Year 2004 - 2015"]
["Derived AJCC 6 N","derivedAjcc6N","Tumor","Stage/Prognostic Factors",2960,2,"yes","conditional","Required for DX Year 2004 - 2015"]
["Derived AJCC-6 N Descript","derivedAjcc6NDescript","Tumor","Stage/Prognostic Factors",2970,1,"yes","conditional","Required for DX Year 2004 - 2015"]
["Derived AJCC-6 Stage Group","derivedAjcc6StageGrp","Tumor","Stage/Prognostic Factors",3000,2,"yes","conditional","Required for DX Year 2004 - 2015"]
["Derived AJCC-6 T","derivedAjcc6T","Tumor","Stage/Prognostic Factors",2940,2,"yes","conditional","Required for DX Year 2004 - 2015"]
["Derived AJCC-6 T Descript","derivedAjcc6TDescript","Tumor","Stage/Prognostic Factors",2950,1,"yes","conditional","Required for DX Year 2004 - 2015"]
["Derived AJCC-7 M","derivedAjcc7M","Tumor","Stage/Prognostic Factors",3420,3,"yes","conditional","Required for DX Year 2004 - 2015"]
["Derived AJCC-7 M Descript","derivedAjcc7MDescript","Tumor","Stage/Prognostic Factors",3422,1,"yes","conditional","Required for DX Year 2004 - 2015"]
["Derived AJCC-7 N","derivedAjcc7N","Tumor","Stage/Prognostic Factors",3410,3,"yes","conditional","Required for DX Year 2004 - 2015"]
["Derived AJCC-7 N Descript","derivedAjcc7NDescript","Tumor","Stage/Prognostic Factors",3412,1,"yes","conditional","Required for DX Year 2004 - 2015"]
["Derived AJCC-7 Stage Grp","derivedAjcc7StageGrp","Tumor","Stage/Prognostic Factors",3430,3,"yes","conditional","Required for DX Year 2004 - 2015"]
["Derived AJCC-7 T","derivedAjcc7T","Tumor","Stage/Prognostic Factors",3400,3,"yes","conditional","Required for DX Year 2004 - 2015"]
["Derived AJCC-7 T Descript","derivedAjcc7TDescript","Tumor","Stage/Prognostic Factors",3402,1,"yes","conditional","Required for DX Year 2004 - 2015"]
["Derived AJCC--Flag","derivedAjccFlag","Tumor","Stage/Prognostic Factors",3030,1,"yes","conditional","Required for DX Year 2004 - 2015"]
["Derived EOD 2018 M","derivedEod2018M","Tumor","Stage/Prognostic Factors",795,15,"no","no",null,"gen in db"]
["Derived EOD 2018 N","derivedEod2018N","Tumor","Stage/Prognostic Factors",815,15,"no","no",null,"gen in db"]
["Derived EOD 2018 Stage Group","derivedEod2018StageGroup","Tumor","Stage/Prognostic Factors",818,15,"no","no",null,"gen in db"]
["Derived EOD 2018 T","derivedEod2018T","Tumor","Stage/Prognostic Factors",785,15,"no","no",null,"gen in db"]
["Derived Pediatric M","derivedPediatricM","Tumor","Stage/Prognostic Factors",1144,3,"yes","conditional","Optional for facility to generate if participating, but required to transmit if available, Site Specific for DX Year 2024 forward","gen in db","2025: New"]
["Derived Pediatric N","derivedPediatricN","Tumor","Stage/Prognostic Factors",1143,3,"yes","conditional","Optional for facility to generate if participating, but required to transmit if available, Site Specific for DX Year 2024 forward","gen in db","2025: New"]
["Derived Pediatric Stage Group","derivedPediatricStageGroup","Tumor","Stage/Prognostic Factors",1145,3,"yes","conditional","Optional for facility to generate if participating, but required to transmit if available, Site Specific for DX Year 2024 forward","gen in db","2025: New"]
["Derived Pediatric T","derivedPediatricT","Tumor","Stage/Prognostic Factors",1142,3,"yes","conditional","Optional for facility to generate if participating, but required to transmit if available, Site Specific for DX Year 2024 forward","gen in db","2025: New"]
["Derived Rai Stage","derivedRaiStage","Tumor","Stage/Prognostic Factors",3955,1,"no","no",null,"gen in db"]
["Derived SEER Clin Stg Grp","derivedSeerClinStgGrp","Tumor","Stage/Prognostic Factors",3610,5,"no","no",null,"gen in db"]
["Derived SEER Cmb M Src","derivedSeerCmbMSrc","Tumor","Stage/Prognostic Factors",3626,1,"no","no",null,"gen in db"]
["Derived SEER Cmb N Src","derivedSeerCmbNSrc","Tumor","Stage/Prognostic Factors",3624,1,"no","no",null,"gen in db"]
["Derived SEER Cmb Stg Grp","derivedSeerCmbStgGrp","Tumor","Stage/Prognostic Factors",3614,5,"no","no",null,"gen in db"]
["Derived SEER Cmb T Src","derivedSeerCmbTSrc","Tumor","Stage/Prognostic Factors",3622,1,"no","no",null,"gen in db"]
["Derived SEER Combined M","derivedSeerCombinedM","Tumor","Stage/Prognostic Factors",3620,5,"no","no",null,"gen in db"]
["Derived SEER Combined N","derivedSeerCombinedN","Tumor","Stage/Prognostic Factors",3618,5,"no","no",null,"gen in db"]
["Derived SEER Combined T","derivedSeerCombinedT","Tumor","Stage/Prognostic Factors",3616,5,"no","no",null,"gen in db"]
["Derived SEER Path Stg Grp","derivedSeerPathStgGrp","Tumor","Stage/Prognostic Factors",3605,5,"no","no",null,"gen in db"]
["Derived SS1977","derivedSs1977","Tumor","Stage/Prognostic Factors",3010,1,"yes","conditional","Required for DX Year 2004 - 2015"]
["Derived SS1977--Flag","derivedSs1977Flag","Tumor","Stage/Prognostic Factors",3040,1,"yes","conditional","Required for DX Year 2004 - 2015"]
["Derived SS2000","derivedSs2000","Tumor","Stage/Prognostic Factors",3020,1,"yes","conditional","Required for DX Year 2004 - 2015"]
["Derived SS2000--Flag","derivedSs2000Flag","Tumor","Stage/Prognostic Factors",3050,1,"yes","conditional","Required for DX Year 2004 - 2015"]
["Derived Summary Grade 2018","derivedSummaryGrade2018","Tumor","Stage/Prognostic Factors",1975,1,"no","no",null,"gen in db"]
["Derived Summary Stage 2018","derivedSummaryStage2018","Tumor","Stage/Prognostic Factors",762,1,"no","no",null,"gen in db"]
["EGFR Mutational Analysis","egfrMutationalAnalysis","Tumor","Stage/Prognostic Factors",3939,1,"yes","conditional","Required for DX Year 2021 forward"]
["EOD Mets","eodMets","Tumor","Stage/Prognostic Factors",776,2,"yes","conditional","Required for DX Year 2018 and forward"]
["EOD Primary Tumor","eodPrimaryTumor","Tumor","Stage/Prognostic Factors",772,3,"yes","conditional","Required for DX Year 2018 and forward"]
["EOD Prostate Pathological Extension","prostatePathologicalExtension","Tumor","Stage/Prognostic Factors",3919,3,"yes","conditional","Required, Site Specific for DX Year 2018 forward"]
["EOD Regional Nodes","eodRegionalNodes","Tumor","Stage/Prognostic Factors",774,3,"yes","conditional","Required for DX Year 2018 and forward"]
["EOD--Extension","eodExtension","Tumor","Stage/Prognostic Factors",790,2,"yes","conditional","Required for DX Year < 2004",null,"Item 790 is a subset of item 779."]
["EOD--Extension Prost Path","eodExtensionProstPath","Tumor","Stage/Prognostic Factors",800,2,"yes","conditional","Required for DX Year < 2004",null,"Item 800 is a subset of item 779."]
["EOD--Lymph Node Involv","eodLymphNodeInvolv","Tumor","Stage/Prognostic Factors",810,1,"yes","conditional","Required for DX Year < 2004",null,"Item 810 is a subset of item 779."]
["EOD--Old 13 Digit","eodOld13Digit","Tumor","Stage/Prognostic Factors",840,13,"no","no"]
["EOD--Old 2 Digit","eodOld2Digit","Tumor","Stage/Prognostic Factors",850,2,"no","no"]
["EOD--Old 4 Digit","eodOld4Digit","Tumor","Stage/Prognostic Factors",860,4,"no","no"]
["EOD--Tumor Size","eodTumorSize","Tumor","Stage/Prognostic Factors",780,3,"yes","conditional","Required for DX Year < 2004",null,"Item 780 is a subset of item 779."]
["Esophagus and EGJ Tumor Epicenter","esophagusAndEgjTumorEpicenter","Tumor","Stage/Prognostic Factors",3829,1,"yes","conditional","Required, Site Specific for DX Year 2018 forward"]
["Estrogen Receptor Percent Positive or Range","estrogenReceptorPercntPosOrRange","Tumor","Stage/Prognostic Factors",3826,3,"yes","conditional","Required, CoC Only for DX Year 2018 forward"]
["Estrogen Receptor Summary","estrogenReceptorSummary","Tumor","Stage/Prognostic Factors",3827,1,"yes","conditional","Required, Site Specific for DX Year 2018 forward"]
["Estrogen Receptor Total Allred Score ","estrogenReceptorTotalAllredScore","Tumor","Stage/Prognostic Factors",3828,2,"yes","conditional","Required, CoC Only for DX Year 2018-2022"]
["EWSR1-FLI1 fusion","ewsr1Fli1Fusion","Tumor","Stage/Prognostic Factors",1191,1,"yes","conditional","Required if available, Site Specific for DX Year 2024 forward",null,"2025: New"]
["Extranodal Extension Clin (non-Head and Neck)","extranodalExtensionClin","Tumor","Stage/Prognostic Factors",3830,1,"yes","conditional","Required, CoC Only for DX Year 2018 forward"]
["Extranodal Extension Head and Neck Clinical","extranodalExtensionHeadNeckClin","Tumor","Stage/Prognostic Factors",3831,1,"yes","conditional","Required, CoC Only for DX Year 2018 forward"]
["Extranodal Extension Head and Neck Pathological","extranodalExtensionHeadNeckPath","Tumor","Stage/Prognostic Factors",3832,3,"yes","conditional","Required, CoC Only Site Specific for DX Year 2018 forward"]
["Extranodal Extension Path (non-Head and Neck)","extranodalExtensionPath","Tumor","Stage/Prognostic Factors",3833,1,"yes","conditional","Required, CoC Only for DX Year 2018 forward"]
["Extravascular Matrix Patterns","extravascularMatrixPatterns","Tumor","Stage/Prognostic Factors",3834,1,"yes","conditional","Required, CoC Only Site Specific for DX Year 2018-2025"]
["Fibrosis Score","fibrosisScore","Tumor","Stage/Prognostic Factors",3835,1,"yes","conditional","Required, Site Specific for DX Year 2018 forward"]
["FIGO Stage","figoStage","Tumor","Stage/Prognostic Factors",3836,5,"yes","conditional","Required, CoC Only Site Specific for DX Year 2018 forward"]
["FOXO1 Gene Rearrangements","foxo1GeneRearrangements","Tumor","Stage/Prognostic Factors",1193,1,"yes","conditional","Required if available, Site Specific for DX Year 2024 forward",null,"2025: New"]
["Gestational Trophoblastic Prognostic Scoring Index","gestationalTrophoblasticPxIndex","Tumor","Stage/Prognostic Factors",3837,2,"yes","conditional","Required, Site Specific for DX Year 2018 forward"]
["Gleason Patterns Clinical","gleasonPatternsClinical","Tumor","Stage/Prognostic Factors",3838,2,"yes","conditional","Required, Site Specific for DX Year 2018 forward"]
["Gleason Patterns Pathological","gleasonPatternsPathological","Tumor","Stage/Prognostic Factors",3839,2,"yes","conditional","Required, Site Specific for DX Year 2018 forward"]
["Gleason Score Clinical","gleasonScoreClinical","Tumor","Stage/Prognostic Factors",3840,2,"yes","conditional","Required, CoC Only for DX Year 2018 forward"]
["Gleason Score Pathological","gleasonScorePathological","Tumor","Stage/Prognostic Factors",3841,2,"yes","conditional","Required, CoC Only for DX Year 2018 forward"]
["Gleason Tertiary Pattern","gleasonTertiaryPattern","Tumor","Stage/Prognostic Factors",3842,2,"yes","conditional","Required, CoC Only Site Specific for DX Year 2018 forward"]
["Grade Clinical","gradeClinical","Tumor","Stage/Prognostic Factors",3843,1,"yes","conditional","Required for DX Year 2018 forward"]
["Grade Pathological","gradePathological","Tumor","Stage/Prognostic Factors",3844,1,"yes","conditional","Required for DX Year 2018 forward"]
["Grade Post Therapy Clin (yc)","gradePostTherapyClin","Tumor","Stage/Prognostic Factors",1068,1,"yes","conditional","Required for DX Year 2021 forward"]
["Grade Post Therapy Path (yp)","gradePostTherapy","Tumor","Stage/Prognostic Factors",3845,1,"yes","conditional","Required for DX Year 2018 forward"]
["hCG Post-Orchiectomy Lab Value","hcgPostOrchiectomyLabValue","Tumor","Stage/Prognostic Factors",3846,7,"yes","conditional","Required, CoC Only for DX Year 2018 forward"]
["hCG Post-Orchiectomy Range","hcgPostOrchiectomyRange","Tumor","Stage/Prognostic Factors",3847,1,"yes","conditional","Required, CoC Only Site Specific for DX Year 2018 forward"]
["hCG Pre-Orchiectomy Lab Value","hcgPreOrchiectomyLabValue","Tumor","Stage/Prognostic Factors",3848,7,"yes","conditional","Required, CoC Only for DX Year 2018 forward"]
["hCG Pre-Orchiectomy Range","hcgPreOrchiectomyRange","Tumor","Stage/Prognostic Factors",3849,1,"yes","conditional","Required, CoC Only Site Specific for DX Year 2018 forward"]
["HER2 IHC Summary ","her2IhcSummary","Tumor","Stage/Prognostic Factors",3850,1,"yes","conditional","DX Year 2018-2020"]
["HER2 ISH Dual Probe Copy Number","her2IshDualProbeCopyNumber","Tumor","Stage/Prognostic Factors",3851,4,"yes","conditional","Required for CoC Only for DX Years 2018-2020"]
["HER2 ISH Dual Probe Ratio","her2IshDualProbeRatio","Tumor","Stage/Prognostic Factors",3852,4,"yes","conditional","Required for CoC Only for DX Years 2018-2020"]
["HER2 ISH Single Probe Copy Number","her2IshSingleProbeCopyNumber","Tumor","Stage/Prognostic Factors",3853,4,"yes","conditional","Required for CoC Only for DX Years 2018-2020"]
["HER2 ISH Summary","her2IshSummary","Tumor","Stage/Prognostic Factors",3854,1,"yes","conditional","Required for CoC Only for DX Years 2018-2020"]
["HER2 Overall Summary ","her2OverallSummary","Tumor","Stage/Prognostic Factors",3855,1,"yes","conditional","Required, Site Specific for DX Year 2018 forward"]
["Heritable Trait","heritableTrait","Tumor","Stage/Prognostic Factors",3856,1,"yes","conditional","Required, Site Specific for DX Year 2018 forward"]
["High Risk Cytogenetics","highRiskCytogenetics","Tumor","Stage/Prognostic Factors",3857,1,"yes","conditional","Required, CoC Only Site Specific for DX Year 2018 forward"]
["High Risk Histologic Features","highRiskHistologicFeatures","Tumor","Stage/Prognostic Factors",3858,1,"yes","conditional","Required, CoC Only Site Specific for DX Year 2018 forward"]
["Histologic Subtype","histologicSubtype","Tumor","Stage/Prognostic Factors",3960,1,"yes","conditional","Required, Site Specific for DX Year 2023 forward"]
["HIV Status","hivStatus","Tumor","Stage/Prognostic Factors",3859,1,"yes","conditional","Required, Site Specific for DX Year 2018-2025"]
["ICD Revision Comorbid","icdRevisionComorbid","Tumor","Stage/Prognostic Factors",3165,1,"yes","yes*",null,null,"2026: Retired"]
["International Normalized Ratio Prothrombin Time","iNRProthrombinTime","Tumor","Stage/Prognostic Factors",3860,3,"yes","conditional","Required, CoC Only for DX Year 2018 forward"]
["Intl Neuroblastoma Path Prog Class (INPC)","inpc","Tumor","Stage/Prognostic Factors",1187,1,"yes","conditional","Required if available, Site Specific for DX Year 2024 forward",null,"2025: New"]
["Intl Neuroblastoma Risk Grp Stag Sys (INRGSS)","inrgss","Tumor","Stage/Prognostic Factors",1185,1,"yes","conditional","Required if available, Site Specific for DX Year 2024 forward",null,"2025: New"]
["Invasion Beyond Capsule","invasionBeyondCapsule","Tumor","Stage/Prognostic Factors",3864,1,"yes","conditional","Required, CoC Only Site Specific for DX Year 2018 forward"]
["Ipsilateral Adrenal Gland Involvement","ipsilateralAdrenalGlandInvolve","Tumor","Stage/Prognostic Factors",3861,1,"yes","conditional","Required, CoC Only Site Specific for DX Year 2018 forward"]
["IRSS Stage for Eye-2","irssStageForEye2","Tumor","Stage/Prognostic Factors",1188,1,"yes","conditional","Required if available, Site Specific for DX Year 2024 forward",null,"2025: New"]
["JAK2","jak2","Tumor","Stage/Prognostic Factors",3862,1,"yes","conditional","Required, Site Specific for DX Year 2018 forward"]
["Ki-67","ki67","Tumor","Stage/Prognostic Factors",3863,5,"yes","conditional","Required, CoC Only Site Specific for DX Year 2018 forward"]
["KIT Gene Immunohistochemistry","kitGeneImmunohistochemistry","Tumor","Stage/Prognostic Factors",3865,1,"yes","conditional","Required, CoC Only for DX Year 2018 forward"]
["KRAS","kras","Tumor","Stage/Prognostic Factors",3866,1,"yes","conditional","Required, Site Specific for DX Year 2018 forward"]
["LDH Lab Value","ldhPretreatmentLabValue","Tumor","Stage/Prognostic Factors",3932,7,"yes","conditional","Required, CoC Only Site Specific for DX Year 2018 forward"]
["LDH  Level","ldhPretreatmentLevel","Tumor","Stage/Prognostic Factors",3869,1,"yes","conditional","Required, Site Specific for DX Year 2018 forward"]
["LDH Post-Orchiectomy Range","ldhPostOrchiectomyRange","Tumor","Stage/Prognostic Factors",3867,1,"yes","conditional","Required, CoC Only Site Specific for DX Year 2018 forward"]
["LDH Pre-Orchiectomy Range","ldhPreOrchiectomyRange","Tumor","Stage/Prognostic Factors",3868,1,"yes","conditional","Required, CoC Only Site Specific for DX Year 2018 forward"]
["LDH Upper Limits of Normal","ldhUpperLimitsOfNormal","Tumor","Stage/Prognostic Factors",3870,3,"yes","conditional","Required, CoC Only for DX Year 2018 forward"]
["LN Assessment Method Femoral-Inguinal","lnAssessMethodFemoralInguinal","Tumor","Stage/Prognostic Factors",3871,1,"yes","conditional","Required, CoC Only for DX Year 2018 forward"]
["LN Assessment Method Para-Aortic","lnAssessMethodParaaortic","Tumor","Stage/Prognostic Factors",3872,1,"yes","conditional","Required, CoC Only for DX Year 2018 forward"]
["LN Assessment Method Pelvic","lnAssessMethodPelvic","Tumor","Stage/Prognostic Factors",3873,1,"yes","conditional","Required, CoC Only for DX Year 2018 forward"]
["LN Distant Assessment Method","lnDistantAssessMethod","Tumor","Stage/Prognostic Factors",3874,1,"yes","conditional","Required, CoC Only for DX Year 2018 forward"]
["LN Distant: Mediastinal, Scalene","lnDistantMediastinalScalene","Tumor","Stage/Prognostic Factors",3875,1,"yes","conditional","Required, CoC Only for DX Year 2018 forward"]
["LN Head and Neck Levels I-III","lnHeadAndNeckLevels1To3","Tumor","Stage/Prognostic Factors",3876,1,"yes","conditional","Required, CoC Only Site Specific for DX Year 2018 forward"]
["LN Head and Neck Levels IV-V","lnHeadAndNeckLevels4To5","Tumor","Stage/Prognostic Factors",3877,1,"yes","conditional","Required, CoC Only Site Specific for DX Year 2018 forward"]
["LN Head and Neck Levels VI-VII","lnHeadAndNeckLevels6To7","Tumor","Stage/Prognostic Factors",3878,1,"yes","conditional","Required, CoC Only Site Specific for DX Year 2018 forward"]
["LN Head and Neck Other","lnHeadAndNeckOther","Tumor","Stage/Prognostic Factors",3879,1,"yes","conditional","Required, CoC Only Site Specific for DX Year 2018 forward"]
["LN Isolated Tumor Cells (ITC)","lnIsolatedTumorCells","Tumor","Stage/Prognostic Factors",3880,1,"yes","conditional","Required, CoC Only Site Specific for DX Year 2018 forward"]
["LN Laterality","lnLaterality","Tumor","Stage/Prognostic Factors",3881,1,"yes","conditional","Required, CoC Only Site Specific for DX Year 2018-2025"]
["LN Positive Axillary Level I-II","lnPositiveAxillaryLevel1To2","Tumor","Stage/Prognostic Factors",3882,2,"yes","conditional","Required, CoC Only Site Specific for DX Year 2018 forward"]
["LN Size","lnSize","Tumor","Stage/Prognostic Factors",3883,4,"yes","conditional","Required, CoC Only Site Specific for DX Year 2018 forward"]
["LN Status Femoral-Inguinal","lnStatusFemoralInguinal","Tumor","Stage/Prognostic Factors",3959,1,"yes","conditional","Required, Site Specific, CoC only for DX Year 2018 forward"]
["LN Status Para-Aortic","lnStatusParaAortic","Tumor","Stage/Prognostic Factors",3958,1,"yes","conditional","Required, Site Specific, CoC only for DX Year 2018 forward"]
["LN Status Pelvic","lnStatusPelvic","Tumor","Stage/Prognostic Factors",3957,1,"yes","conditional","Required, Site Specific, CoC only for DX Year 2018 forward"]
["Lymphocytosis","lymphocytosis","Tumor","Stage/Prognostic Factors",3885,1,"yes","conditional","Required, Site Specific for DX Year 2018 forward"]
["Lymphovascular Invasion","lymphVascularInvasion","Tumor","Stage/Prognostic Factors",1182,1,"yes","conditional","Required for testis and penis cases for DX Year 2010 forward. Required when available for other sites."]
["Macroscopic Evaluation of Mesorectum","macroscopicEvalOfTheMesorectum","Tumor","Stage/Prognostic Factors",3950,2,"yes","conditional","Required, CoC Only for DX Year 2022 forward"]
["Major Vein Involvement","majorVeinInvolvement","Tumor","Stage/Prognostic Factors",3886,1,"yes","conditional","Required, CoC Only Site Specific for DX Year 2018 forward"]
["Measured Basal Diameter","measuredBasalDiameter","Tumor","Stage/Prognostic Factors",3887,4,"yes","conditional","Required, Site Specific for DX Year 2018 forward"]
["Measured Thickness","measuredThickness","Tumor","Stage/Prognostic Factors",3888,4,"yes","conditional","Required, Site Specific for DX Year 2018 forward"]
["Methylation of O6-Methylguanine-Methyltransferase","methylationOfO6MGMT","Tumor","Stage/Prognostic Factors",3889,1,"yes","conditional","Required, Site Specific for DX Year 2018 forward"]
["Mets at DX-Bone","metsAtDxBone","Tumor","Stage/Prognostic Factors",1112,1,"yes","conditional","Required for DX Year 2016 and forward"]
["Mets at DX-Brain","metsAtDxBrain","Tumor","Stage/Prognostic Factors",1113,1,"yes","conditional","Required for DX Year 2016 and forward"]
["Mets at DX-Distant LN","metsAtDxDistantLn","Tumor","Stage/Prognostic Factors",1114,1,"yes","conditional","Required for DX Year 2016 and forward"]
["Mets at DX-Liver","metsAtDxLiver","Tumor","Stage/Prognostic Factors",1115,1,"yes","conditional","Required for DX Year 2016 and forward"]
["Mets at DX-Lung","metsAtDxLung","Tumor","Stage/Prognostic Factors",1116,1,"yes","conditional","Required for DX Year 2016 and forward"]
["Mets at DX-Other","metsAtDxOther","Tumor","Stage/Prognostic Factors",1117,1,"yes","conditional","Required for DX Year 2016 and forward"]
["Microsatellite Instability (MSI)","microsatelliteInstability","Tumor","Stage/Prognostic Factors",3890,1,"yes","conditional","Required, Site Specific for DX Year 2018 forward, and 2026 forward for 00530"]
["Microvascular Density","microvascularDensity","Tumor","Stage/Prognostic Factors",3891,2,"yes","conditional","Required, CoC Only Site Specific for DX Year 2018-2025"]
["Mitotic Count Uveal Melanoma","mitoticCountUvealMelanoma","Tumor","Stage/Prognostic Factors",3892,4,"yes","conditional","Required, CoC Only for DX Year 2018 forward"]
["Mitotic Rate Melanoma","mitoticRateMelanoma","Tumor","Stage/Prognostic Factors",3893,2,"yes","conditional","Required, Site Specific for DX Year 2018 forward"]
["Multigene Signature Method","multigeneSignatureMethod","Tumor","Stage/Prognostic Factors",3894,1,"yes","conditional","Required, Site Specific for DX Year 2018-2025"]
["Multigene Signature Results","multigeneSignatureResults","Tumor","Stage/Prognostic Factors",3895,2,"yes","conditional","Required, Site Specific for DX Year 2018-2025"]
["n-MYC Amplification","nMycAmplification","Tumor","Stage/Prognostic Factors",1186,1,"yes","conditional","Required if available, Site Specific for DX Year 2024 forward",null,"2025: New"]
["NCCN International Prognostic Index (IPI)","nccnInternationalPrognosticIndex","Tumor","Stage/Prognostic Factors",3896,2,"yes","conditional","Required, CoC Only Site Specific for DX Year 2018 forward"]
["NPCR Derived AJCC 8 TNM Clin Stg Grp","npcrDerivedAjcc8TnmClinStgGrp","Tumor","Stage/Prognostic Factors",3645,15,"no","no",null,"gen in db","2026: Retired"]
["NPCR Derived AJCC 8 TNM Path Stg Grp","npcrDerivedAjcc8TnmPathStgGrp","Tumor","Stage/Prognostic Factors",3646,15,"no","no",null,"gen in db","2026: Retired"]
["NPCR Derived AJCC 8 TNM Post Therapy Stg Grp","npcrDerivedAjcc8TnmPostStgGrp","Tumor","Stage/Prognostic Factors",3647,15,"no","no",null,"gen in db","2026: Retired"]
["NRAS Mutational Analysis","nrasMutationalAnalysis","Tumor","Stage/Prognostic Factors",3941,1,"yes","conditional","Required for DX Year 2021 forward"]
["Number of Cores Examined","numberOfCoresExamined","Tumor","Stage/Prognostic Factors",3897,2,"yes","conditional","Required, Site Specific for DX Year 2018 forward"]
["Number of Cores Positive","numberOfCoresPositive","Tumor","Stage/Prognostic Factors",3898,2,"yes","conditional","Required, Site Specific for DX Year 2018 forward"]
["Number of Examined Para-Aortic Nodes","numberOfExaminedParaAorticNodes","Tumor","Stage/Prognostic Factors",3899,2,"yes","conditional","Required, CoC Only for DX Year 2018 forward"]
["Number of Examined Pelvic Nodes","numberOfExaminedPelvicNodes","Tumor","Stage/Prognostic Factors",3900,2,"yes","conditional","Required, CoC Only for DX Year 2018 forward"]
["Number of Positive Para-Aortic Nodes","numberOfPositiveParaAorticNodes","Tumor","Stage/Prognostic Factors",3901,2,"yes","conditional","Required, CoC Only for DX Year 2018 forward"]
["Number of Positive Pelvic Nodes","numberOfPositivePelvicNodes","Tumor","Stage/Prognostic Factors",3902,2,"yes","conditional","Required, CoC Only for DX Year 2018 forward"]
["Oncotype Dx Recurrence Score-DCIS","oncotypeDxRecurrenceScoreDcis","Tumor","Stage/Prognostic Factors",3903,3,"yes","conditional","Required, CoC Only Site Specific for DX Year 2018-2025"]
["Oncotype Dx Recurrence Score-Invasive","oncotypeDxRecurrenceScoreInvasiv","Tumor","Stage/Prognostic Factors",3904,3,"yes","conditional","Required, Site Specific for DX Year 2018 forward"]
["Oncotype Dx Risk Level-DCIS","oncotypeDxRiskLevelDcis","Tumor","Stage/Prognostic Factors",3905,1,"yes","conditional","Required, CoC Only for DX Year 2018-2025"]
["Oncotype Dx Risk Level-Invasive","oncotypeDxRiskLevelInvasive","Tumor","Stage/Prognostic Factors",3906,1,"yes","conditional","Required, CoC Only for DX Year 2018-2025"]
["Organomegaly","organomegaly","Tumor","Stage/Prognostic Factors",3907,1,"yes","conditional","Required, Site Specific for DX Year 2018 forward"]
["p16","p16","Tumor","Stage/Prognostic Factors",3956,1,"yes","conditional","Required, Site Specific for DX Year 2021 forward"]
["Pediatric ID","pediatricId","Tumor","Stage/Prognostic Factors",1132,5,"yes","conditional","Required for participating facilities to generate for abstraction, required to transmit if available, Site Specific for DX Year 2024 forward","gen in db for consolidated data","2025: New"]
["Pediatric ID Version Current","pediatricIdVersionCurrent","Tumor","Stage/Prognostic Factors",1133,5,"yes","conditional","Required for participating facilities to generate for abstraction, required to transmit if available, Site Specific for DX Year 2024 forward","gen in db for consolidated data","2025: New"]
["Pediatric ID Version Original","pediatricIdVersionOriginal","Tumor","Stage/Prognostic Factors",1134,5,"yes","conditional","Required for participating facilities to generate for abstraction, required to transmit if available, Site Specific for DX Year 2024 forward","gen in db for consolidated data","2025: New"]
["Pediatric Mets","pediatricMets","Tumor","Stage/Prognostic Factors",1138,2,"yes","conditional","Required if available, Site Specific for DX Year 2024 forward",null,"2025: New"]
["Pediatric Primary Tumor","pediatricPrimaryTumor","Tumor","Stage/Prognostic Factors",1136,3,"yes","conditional","Required if available, Site Specific for DX Year 2024 forward",null,"2025: New"]
["Pediatric Regional Nodes","pediatricRegionalNodes","Tumor","Stage/Prognostic Factors",1137,3,"yes","conditional","Required if available, Site Specific for DX Year 2024 forward",null,"2025: New"]
["Pediatric Stage","pediatricStage","Tumor","Stage/Prognostic Factors",1120,2,"yes","conditional","Required for pediatric cases only",null,"2026: Retired"]
["Pediatric Staged By","pediatricStagedBy","Tumor","Stage/Prognostic Factors",1140,1,"yes","conditional","Required for pediatric cases only",null,"2026: Retired"]
["Pediatric Staging System","pediatricStagingSystem","Tumor","Stage/Prognostic Factors",1130,2,"yes","conditional","Required for pediatric cases only",null,"2026: Retired"]
["Percent Necrosis Post Neoadjuvant","percentNecrosisPostNeoadjuvant","Tumor","Stage/Prognostic Factors",3908,5,"yes","conditional","Required, CoC Only Site Specific Only for 2018-2025"]
["Perineural Invasion","perineuralInvasion","Tumor","Stage/Prognostic Factors",3909,1,"yes","conditional","Required, Site Specific for DX Year 2018 forward"]
["Peripheral Blood Involvement","peripheralBloodInvolvement","Tumor","Stage/Prognostic Factors",3910,1,"yes","conditional","Required, Site Specific for DX Year 2018 forward"]
["Peritoneal Cytology","peritonealCytology","Tumor","Stage/Prognostic Factors",3911,1,"yes","conditional","Required, Site Specific for DX Year 2018 forward"]
["PD-L1","pdl1","Tumor","Stage/Prognostic Factors",1174,5,"yes","conditional","Required, Site Specific for DX Year 2025 forward",null,"2025: New"]
["Pleural Effusion","pleuralEffusion","Tumor","Stage/Prognostic Factors",3913,1,"yes","conditional","Required, Site Specific for DX Year 2018 forward"]
["Post Transplant Lymphoproliferative Disorder-PTLD","ptld","Tumor","Stage/Prognostic Factors",1172,1,"yes","conditional","Required, Site Specific for DX Year 2025 forward",null,"2025: New"]
["Pretext Clinical Staging","pretextClinicalStaging","Tumor","Stage/Prognostic Factors",1192,1,"yes","conditional","Required if available, Site Specific for DX Year 2024 forward",null,"2025: New"]
["Primary Sclerosing Cholangitis","primarySclerosingCholangitis","Tumor","Stage/Prognostic Factors",3917,1,"yes","conditional","Required, Site Specific, CoC Only for DX Year 2018-2021"]
["Profound Immune Suppression","profoundImmuneSuppression","Tumor","Stage/Prognostic Factors",3918,1,"yes","conditional","Required, CoC Only Site Specific for DX Year 2018 forward"]
["Progesterone Receptor Percent Positive or Range ","progesteroneRecepPrcntPosOrRange","Tumor","Stage/Prognostic Factors",3914,3,"yes","conditional","Required, CoC Only for DX Year 2018 forward"]
["Progesterone Receptor Summary","progesteroneRecepSummary","Tumor","Stage/Prognostic Factors",3915,1,"yes","conditional","Required, Site Specific for DX Year 2018 forward"]
["Progesterone Receptor Total Allred Score ","progesteroneRecepTotalAllredScor","Tumor","Stage/Prognostic Factors",3916,2,"yes","conditional","Required, CoC Only for DX Year 2018-2022"]
["PSA (Prostatic Specific Antigen) Lab Value","psaLabValue","Tumor","Stage/Prognostic Factors",3920,5,"yes","conditional","Required, Site Specific for DX Year 2018 forward"]
["Regional Nodes Examined","regionalNodesExamined","Tumor","Stage/Prognostic Factors",830,2,"yes","yes",null,null,"Item 830 is a subset of item 779."]
["Regional Nodes Positive","regionalNodesPositive","Tumor","Stage/Prognostic Factors",820,2,"yes","yes",null,null,"Item 820 is a subset of item 779."]
["Residual Cancer Burden (RCB)","residualCancerBurdenRCB","Tumor","Stage/Prognostic Factors",1178,5,"yes","conditional","Required, CoC Only Site Specific for DX Year 2016 forward",null,"2026: New"]
["Residual Cancer Burden (RCB) Class","residualCancerBurdenClass","Tumor","Stage/Prognostic Factors",1179,1,"yes","conditional","Required, CoC Only Site Specific for DX Year 2016 forward",null,"2026: New"]
["Residual Tumor Volume Post Cytoreduction","residualTumVolPostCytoreduction","Tumor","Stage/Prognostic Factors",3921,2,"yes","conditional","Required, CoC Only Site Specific for DX Year 2018 forward"]
["Response to Neoadjuvant Therapy","responseToNeoadjuvantTherapy","Tumor","Stage/Prognostic Factors",3922,1,"yes","conditional","Required, CoC Only for DX Year 2018 forward"]
["S Category Clinical","sCategoryClinical","Tumor","Stage/Prognostic Factors",3923,1,"yes","conditional","Required, Site Specific for DX Year 2018 forward"]
["S Category Pathological","sCategoryPathological","Tumor","Stage/Prognostic Factors",3924,1,"yes","conditional","Required, Site Specific for DX Year 2018 forward"]
["Sarcomatoid Features","sarcomatoidFeatures","Tumor","Stage/Prognostic Factors",3925,3,"yes","conditional","Required, Site Specific for DX Year 2018 forward"]
["Schema Discriminator 1","schemaDiscriminator1","Tumor","Stage/Prognostic Factors",3926,1,"yes","conditional","Required, Site Specific for DX Year 2018 forward"]
["Schema Discriminator 2","schemaDiscriminator2","Tumor","Stage/Prognostic Factors",3927,1,"yes","conditional","Required, Site Specific for DX Year 2018 forward"]
["Schema Discriminator 3","schemaDiscriminator3","Tumor","Stage/Prognostic Factors",3928,1,"yes","conditional","Required, Site Specific for DX Year 2018 forward"]
["Schema ID","schemaId","Tumor","Stage/Prognostic Factors",3800,5,"yes","conditional","Required for DX Year 2018 and forward"]
["Secondary Diagnosis 1","secondaryDiagnosis1","Tumor","Stage/Prognostic Factors",3780,7,"yes","yes"]
["Secondary Diagnosis 10","secondaryDiagnosis10","Tumor","Stage/Prognostic Factors",3798,7,"yes","yes*"]
["Secondary Diagnosis 2","secondaryDiagnosis2","Tumor","Stage/Prognostic Factors",3782,7,"yes","yes*"]
["Secondary Diagnosis 3","secondaryDiagnosis3","Tumor","Stage/Prognostic Factors",3784,7,"yes","yes*"]
["Secondary Diagnosis 4","secondaryDiagnosis4","Tumor","Stage/Prognostic Factors",3786,7,"yes","yes*"]
["Secondary Diagnosis 5","secondaryDiagnosis5","Tumor","Stage/Prognostic Factors",3788,7,"yes","yes*"]
["Secondary Diagnosis 6","secondaryDiagnosis6","Tumor","Stage/Prognostic Factors",3790,7,"yes","yes*"]
["Secondary Diagnosis 7","secondaryDiagnosis7","Tumor","Stage/Prognostic Factors",3792,7,"yes","yes*"]
["Secondary Diagnosis 8","secondaryDiagnosis8","Tumor","Stage/Prognostic Factors",3794,7,"yes","yes*"]
["Secondary Diagnosis 9","secondaryDiagnosis9","Tumor","Stage/Prognostic Factors",3796,7,"yes","yes*"]
["SEER Site-Specific Fact 1","seerSiteSpecificFact1","Tumor","Stage/Prognostic Factors",3700,2,"yes","conditional","Required for DX Year 2018 forward"]
["SEER Site-Specific Fact 2","seerSiteSpecificFact2","Tumor","Stage/Prognostic Factors",3702,1,"no","no"]
["SEER Site-Specific Fact 3","seerSiteSpecificFact3","Tumor","Stage/Prognostic Factors",3704,1,"no","no"]
["SEER Site-Specific Fact 4","seerSiteSpecificFact4","Tumor","Stage/Prognostic Factors",3706,1,"no","no"]
["SEER Site-Specific Fact 5","seerSiteSpecificFact5","Tumor","Stage/Prognostic Factors",3708,1,"no","no"]
["SEER Site-Specific Fact 6","seerSiteSpecificFact6","Tumor","Stage/Prognostic Factors",3710,1,"no","no"]
["SEER Summary Stage 1977","seerSummaryStage1977","Tumor","Stage/Prognostic Factors",760,1,"yes","conditional","Required for DX Year < 2001"]
["SEER Summary Stage 2000","seerSummaryStage2000","Tumor","Stage/Prognostic Factors",759,1,"yes","conditional","Required for DX Year 2001 - 2017"]
["Sentinel Lymph Nodes Examined","sentinelLymphNodesExamined","Tumor","Stage/Prognostic Factors",834,2,"yes","conditional","Required for DX Year 2018 and forward for Melamona of Skin and Breast"]
["Sentinel Lymph Nodes Positive","sentinelLymphNodesPositive","Tumor","Stage/Prognostic Factors",835,2,"yes","conditional","Required for DX Year 2018 and forward for Melamona of Skin and Breast"]
["Separate Tumor Nodules","separateTumorNodules","Tumor","Stage/Prognostic Factors",3929,1,"yes","conditional","Required, CoC Only Site Specific for DX Year 2018 forward"]
["Serum Albumin Pretreatment Level","serumAlbuminPretreatmentLevel","Tumor","Stage/Prognostic Factors",3930,1,"yes","conditional","Required, Site Specific for DX Year 2018 forward"]
["Serum Beta-2 Microglobulin Pretreatment Level","serumBeta2MicroglobulinPretxLvl","Tumor","Stage/Prognostic Factors",3931,1,"yes","conditional","Required, Site Specific for DX Year 2018 forward"]
["Spread Through Air Spaces (STAS)","spreadThroughAirSpacesStas","Tumor","Stage/Prognostic Factors",1176,1,"yes","conditional","Required, CoC Only Site Specific for DX Year 2016 forward",null,"2026: New"]
["Summary Stage 2018","summaryStage2018","Tumor","Stage/Prognostic Factors",764,1,"yes","conditional","Required for DX Year 2018 and forward"]
["Thrombocytopenia","thrombocytopenia","Tumor","Stage/Prognostic Factors",3933,1,"yes","conditional","Required, Site Specific for DX Year 2018 forward"]
["TNM Clin Descriptor","tnmClinDescriptor","Tumor","Stage/Prognostic Factors",980,1,"yes","conditional","Required for DX Year 2016 - 2017"]
["TNM Clin M","tnmClinM","Tumor","Stage/Prognostic Factors",960,4,"yes","conditional","Required for DX Year 2016 - 2017"]
["TNM Clin N","tnmClinN","Tumor","Stage/Prognostic Factors",950,4,"yes","conditional","Required for DX Year 2016 - 2017"]
["TNM Clin Stage Group","tnmClinStageGroup","Tumor","Stage/Prognostic Factors",970,4,"yes","conditional","Required for DX Year 2016 - 2017"]
["TNM Clin Staged By","tnmClinStagedBy","Tumor","Stage/Prognostic Factors",990,2,"yes","conditional","Required for DX Year 2016 - 2017"]
["TNM Clin T","tnmClinT","Tumor","Stage/Prognostic Factors",940,4,"yes","conditional","Required for DX Year 2016 - 2017"]
["TNM Edition Number","tnmEditionNumber","Tumor","Stage/Prognostic Factors",1060,2,"yes","conditional","Required for DX Year 2016 and forward"]
["TNM Path Descriptor","tnmPathDescriptor","Tumor","Stage/Prognostic Factors",920,1,"yes","conditional","Required for DX Year 2016 - 2017"]
["TNM Path M","tnmPathM","Tumor","Stage/Prognostic Factors",900,4,"yes","conditional","Required for DX Year 2016 - 2017"]
["TNM Path N","tnmPathN","Tumor","Stage/Prognostic Factors",890,4,"yes","conditional","Required for DX Year 2016 - 2017"]
["TNM Path Stage Group","tnmPathStageGroup","Tumor","Stage/Prognostic Factors",910,4,"yes","conditional","Required for DX Year 2016 - 2017"]
["TNM Path Staged By","tnmPathStagedBy","Tumor","Stage/Prognostic Factors",930,2,"yes","conditional","Required for DX Year 2016 - 2017"]
["TNM Path T","tnmPathT","Tumor","Stage/Prognostic Factors",880,4,"yes","conditional","Required for DX Year 2016 - 2017"]
["Toronto M","torontoM","Tumor","Stage/Prognostic Factors",1148,3,"yes","conditional","Optional for facility to generate if participating, but required to transmit if available, Site Specific for DX Year 2025 forward","gen in db","2025: New"]
["Toronto N","torontoN","Tumor","Stage/Prognostic Factors",1147,3,"yes","conditional","Optional for facility to generate if participating, but required to transmit if available, Site Specific for DX Year 2025 forward","gen in db","2025: New"]
["Toronto Stage Group","torontoStageGroup","Tumor","Stage/Prognostic Factors",1149,3,"yes","conditional","Optional for facility to generate if participating, but required to transmit if available, Site Specific for DX Year 2025 forward","gen in db","2025: New"]
["Toronto Version Number","torontoVersionNumber","Tumor","Stage/Prognostic Factors",1135,1,"yes","conditional","Optional for facility to generate if participating, but required to transmit if available, Site Specific for DX Year 2025 forward","gen in db","2025: New"]
["Toronto T","torontoT","Tumor","Stage/Prognostic Factors",1146,3,"yes","conditional","Optional for facility to generate if participating, but required to transmit if available, Site Specific for DX Year 2025 forward","gen in db","2025: New"]
["Tumor Deposits","tumorDeposits","Tumor","Stage/Prognostic Factors",3934,2,"yes","conditional","Required, CoC Only Site Specific for DX Year 2018 forward"]
["Tumor Growth Pattern","tumorGrowthPattern","Tumor","Stage/Prognostic Factors",3935,1,"yes","conditional","Required, Site Specific for DX Year 2018-2021"]
["Tumor Marker 1","tumorMarker1","Tumor","Stage/Prognostic Factors",1150,1,"yes","conditional","Site specific, required for DX Year < 2004"]
["Tumor Marker 2","tumorMarker2","Tumor","Stage/Prognostic Factors",1160,1,"yes","conditional","Site specific, required for DX Year < 2004"]
["Tumor Marker 3","tumorMarker3","Tumor","Stage/Prognostic Factors",1170,1,"yes","conditional","Site specific, required for DX Year < 2004"]
["Tumor Size Clinical","tumorSizeClinical","Tumor","Stage/Prognostic Factors",752,3,"yes","conditional","Required for DX Year 2016 and forward"]
["Tumor Size Pathologic","tumorSizePathologic","Tumor","Stage/Prognostic Factors",754,3,"yes","conditional","Required for DX Year 2016 and forward"]
["Tumor Size Summary","tumorSizeSummary","Tumor","Stage/Prognostic Factors",756,3,"yes","conditional","Required for DX Year 2016 and forward"]
["Ulceration","ulceration","Tumor","Stage/Prognostic Factors",3936,1,"yes","conditional","Required, Site Specific for DX Year 2018 forward"]
["Visceral and Parietal Pleural Invasion","visceralParietalPleuralInvasion","Tumor","Stage/Prognostic Factors",3937,1,"yes","conditional","Required, CoC Only Site Specific for DX Year 2018 forward"]
["White Blood Cell Count","whiteBloodCellCount","Tumor","Stage/Prognostic Factors",1184,7,"yes","conditional","Required if available, Site Specific for DX Year 2024 forward",null,"2025: New"]
["Text--DX Proc--Lab Tests","textDxProcLabTests","Tumor","Text-Diagnosis",2550,4000,"yes","yes*"]
["Text--DX Proc--Op","textDxProcOp","Tumor","Text-Diagnosis",2560,4000,"yes","yes*"]
["Text--DX Proc--Path","textDxProcPath","Tumor","Text-Diagnosis",2570,4000,"yes","yes*"]
["Text--DX Proc--PE","textDxProcPe","Tumor","Text-Diagnosis",2520,4000,"yes","yes*"]
["Text--DX Proc--Scopes","textDxProcScopes","Tumor","Text-Diagnosis",2540,4000,"yes","yes*"]
["Text--DX Proc--X-ray/Scan","textDxProcXRayScan","Tumor","Text-Diagnosis",2530,4000,"yes","yes*"]
["Text--Histology Title","textHistologyTitle","Tumor","Text-Diagnosis",2590,100,"yes","yes"]
["Text--Primary Site Title","textPrimarySiteTitle","Tumor","Text-Diagnosis",2580,100,"yes","yes"]
["Text--Staging","textStaging","Tumor","Text-Diagnosis",2600,4000,"yes","yes*"]
["Text--Place of Diagnosis","textPlaceOfDiagnosis","Tumor","Text-Miscellaneous",2690,60,"yes","yes*"]
["Text--Remarks","textRemarks","Tumor","Text-Miscellaneous",2680,4000,"yes","yes*"]
["RX Text--BRM","rxTextBrm","Tumor","Text-Treatment",2660,4000,"yes","yes*"]
["RX Text--Chemo","rxTextChemo","Tumor","Text-Treatment",2640,4000,"yes","yes*"]
["RX Text--Hormone","rxTextHormone","Tumor","Text-Treatment",2650,4000,"yes","yes*"]
["RX Text--Other","rxTextOther","Tumor","Text-Treatment",2670,4000,"yes","yes*"]
["RX Text--Radiation (Beam)","rxTextRadiation","Tumor","Text-Treatment",2620,4000,"yes","yes*"]
["RX Text--Radiation Other","rxTextRadiationOther","Tumor","Text-Treatment",2630,4000,"yes","yes*"]
["RX Text--Surgery","rxTextSurgery","Tumor","Text-Treatment",2610,4000,"no","no"]
["Date 1st Crs RX CoC","date1stCrsRxCoc","Tumor","Treatment-1st Course",1270,8,"no","no"]
["Date Initial RX SEER","dateInitialRxSeer","Tumor","Treatment-1st Course",1260,8,"yes","yes","This data item is now always required, but the requirements for abstraction are different for 2024 diagnoses forward and pre-2024 diagnoses. A missed SEER requirements modification for the 2024 data now requires abstracting the date the decision was made to perform active surveillance as the earliest first course of treatment to go with code 2 in RX Summ–Treatment Status.  For pre-2024 diagnoses, Date Initial RX SEER must be derived from the various treatment modality dates only, taking partial dates into account."]
["Neoadjuvant Therapy","neoadjuvantTherapy","Tumor","Treatment-1st Course",1632,1,"yes","conditional","Required for DX Year 2021 forward"]
["Neoadjuvant Therapy-Clinical Response","neoadjuvTherapyClinicalResponse","Tumor","Treatment-1st Course",1633,1,"yes","conditional","Required for DX Year 2021 forward"]
["Neoadjuvant Therapy-Treatment Effect","neoadjuvTherapyTreatmentEffect","Tumor","Treatment-1st Course",1634,1,"yes","conditional","Required for DX Year 2021 forward"]
["Number of Phases of Rad Treatment to this Volume","numberPhasesOfRadTxToVolume","Tumor","Treatment-1st Course",1532,2,"yes","conditional","Required as available for DX Year 2018 forward"]
["Phase I Dose per Fraction","phase1DosePerFraction","Tumor","Treatment-1st Course",1501,5,"yes","conditional","Required as available for DX Year 2018 forward"]
["Phase I Number of Fractions","phase1NumberOfFractions","Tumor","Treatment-1st Course",1503,3,"yes","conditional","Required as available for DX Year 2018 forward"]
["Phase I Radiation External Beam Planning Tech","phase1RadiationExternalBeamTech","Tumor","Treatment-1st Course",1502,2,"yes","conditional","Required for DX Year 2018 forward"]
["Phase I Radiation Primary Treatment Volume","phase1RadiationPrimaryTxVolume","Tumor","Treatment-1st Course",1504,2,"yes","conditional","Required as available for DX Year 2018 forward"]
["Phase I Radiation to Draining Lymph Nodes","phase1RadiationToDrainingLN","Tumor","Treatment-1st Course",1505,2,"yes","conditional","Required as available for DX Year 2018 forward"]
["Phase I Radiation Treatment Modality","phase1RadiationTreatmentModality","Tumor","Treatment-1st Course",1506,2,"yes","conditional","Required for DX Year 2018 forward"]
["Phase I Total Dose","phase1TotalDose","Tumor","Treatment-1st Course",1507,6,"yes","conditional","Required as available for DX Year 2018 forward"]
["Phase II Dose per Fraction","phase2DosePerFraction","Tumor","Treatment-1st Course",1511,5,"yes","conditional","Required as available for DX Year 2018 forward"]
["Phase II Number of Fractions","phase2NumberOfFractions","Tumor","Treatment-1st Course",1513,3,"yes","conditional","Required as available for DX Year 2018 forward"]
["Phase II Radiation External Beam Planning Tech","phase2RadiationExternalBeamTech","Tumor","Treatment-1st Course",1512,2,"yes","conditional","Required for DX Year 2018 forward"]
["Phase II Radiation Primary Treatment Volume","phase2RadiationPrimaryTxVolume","Tumor","Treatment-1st Course",1514,2,"yes","conditional","Required as available for DX Year 2018 forward"]
["Phase II Radiation to Draining Lymph Nodes","phase2RadiationToDrainingLN","Tumor","Treatment-1st Course",1515,2,"yes","conditional","Required as available for DX Year 2018 forward"]
["Phase II Radiation Treatment Modality","phase2RadiationTreatmentModality","Tumor","Treatment-1st Course",1516,2,"yes","conditional","Required for DX Year 2018 forward"]
["Phase II Total Dose","phase2TotalDose","Tumor","Treatment-1st Course",1517,6,"yes","conditional","Required as available for DX Year 2018 forward"]
["Phase III Dose per Fraction","phase3DosePerFraction","Tumor","Treatment-1st Course",1521,5,"yes","conditional","Required as available for DX Year 2018 forward"]
["Phase III Number of Fractions","phase3NumberOfFractions","Tumor","Treatment-1st Course",1523,3,"yes","conditional","Required as available for DX Year 2018 forward"]
["Phase III Radiation External Beam Planning Tech","phase3RadiationExternalBeamTech","Tumor","Treatment-1st Course",1522,2,"yes","conditional","Required for DX Year 2018 forward"]
["Phase III Radiation Primary Treatment Volume","phase3RadiationPrimaryTxVolume","Tumor","Treatment-1st Course",1524,2,"yes","conditional","Required as available for DX Year 2018 forward"]
["Phase III Radiation to Draining Lymph Nodes","phase3RadiationToDrainingLN","Tumor","Treatment-1st Course",1525,2,"yes","conditional","Required as available for DX Year 2018 forward"]
["Phase III Radiation Treatment Modality","phase3RadiationTreatmentModality","Tumor","Treatment-1st Course",1526,2,"yes","conditional","Required for DX Year 2018 forward"]
["Phase III Total Dose","phase3TotalDose","Tumor","Treatment-1st Course",1527,6,"yes","conditional","Required as available for DX Year 2018 forward"]
["Radiation Treatment Discontinued Early","radiationTxDiscontinuedEarly","Tumor","Treatment-1st Course",1531,2,"yes","conditional","Required as available for DX Year 2018 forward"]
["Rad--Location of RX","radLocationOfRx","Tumor","Treatment-1st Course",1550,1,"yes","yes"]
["Rad--Regional RX Modality","radRegionalRxModality","Tumor","Treatment-1st Course",1570,2,"yes","conditional","Required for DX Year earlier than 2018"]
["Readm Same Hosp 30 Days","readmSameHosp30Days","Tumor","Treatment-1st Course",3190,1,"no","no"]
["Reason for No Radiation","reasonForNoRadiation","Tumor","Treatment-1st Course",1430,1,"yes","yes"]
["Reason for No Surgery","reasonForNoSurgery","Tumor","Treatment-1st Course",1340,1,"yes","yes"]
["RX Coding System--Current","rxCodingSystemCurrent","Tumor","Treatment-1st Course",1460,2,"no","no",null,"gen for extract"]
["RX Date BRM","rxDateBrm","Tumor","Treatment-1st Course",1240,8,"yes","yes"]
["RX Date Chemo","rxDateChemo","Tumor","Treatment-1st Course",1220,8,"yes","yes"]
["RX Date DX/Stg Proc","rxDateDxStgProc","Tumor","Treatment-1st Course",1280,8,"yes","yes*"]
["RX Date Hormone","rxDateHormone","Tumor","Treatment-1st Course",1230,8,"yes","yes"]
["RX Date Mst Defn Srg","rxDateMostDefinSurg","Tumor","Treatment-1st Course",3170,8,"yes","yes"]
["RX Date Other","rxDateOther","Tumor","Treatment-1st Course",1250,8,"yes","yes"]
["RX Date Rad Ended","rxDateRadiationEnded","Tumor","Treatment-1st Course",3220,8,"no","no"]
["RX Date Radiation","rxDateRadiation","Tumor","Treatment-1st Course",1210,8,"yes","yes"]
["RX Date Surg Disch","rxDateSurgicalDisch","Tumor","Treatment-1st Course",3180,8,"no","no"]
["RX Date Surgery","rxDateSurgery","Tumor","Treatment-1st Course",1200,8,"yes","yes"]
["RX Date Systemic","rxDateSystemic","Tumor","Treatment-1st Course",3230,8,"no","no",null,"gen in db"]
["RX Summ--BRM","rxSummBrm","Tumor","Treatment-1st Course",1410,2,"yes","yes"]
["RX Summ--Chemo","rxSummChemo","Tumor","Treatment-1st Course",1390,2,"yes","yes"]
["RX Summ--DX/Stg Proc","rxSummDxStgProc","Tumor","Treatment-1st Course",1350,2,"yes","yes*"]
["RX Summ--Hormone","rxSummHormone","Tumor","Treatment-1st Course",1400,2,"yes","yes"]
["RX Summ--Other","rxSummOther","Tumor","Treatment-1st Course",1420,1,"yes","yes"]
["RX Summ--Palliative Proc","rxSummPalliativeProc","Tumor","Treatment-1st Course",3270,1,"no","no"]
["RX Summ--Rad to CNS","rxSummRadToCns","Tumor","Treatment-1st Course",1370,1,"no","no"]
["RX Summ--Radiation","rxSummRadiation","Tumor","Treatment-1st Course",1360,1,"yes","conditional","Required for DX Year < 2018","gen in db"]
["RX Summ--Recon Breast","rxSummReconBreast","Tumor","Treatment-1st Course",1335,4,"yes","conditional","Required for DX Year 2024 forward"]
["RX Summ--Reconstruct 1st","rxSummReconstruct1st","Tumor","Treatment-1st Course",1330,1,"yes","conditional","Required for DX Year < 2003"]
["RX Summ--Reg LN Examined","rxSummRegLnExamined","Tumor","Treatment-1st Course",1296,2,"yes","conditional","Required for DX Year < 2003"]
["RX Summ--Scope Reg 98-02","rxSummScopeReg9802","Tumor","Treatment-1st Course",1647,1,"yes","conditional","Required for DX Year < 2003"]
["RX Summ--Scope Reg LN Sur","rxSummScopeRegLnSur","Tumor","Treatment-1st Course",1292,1,"yes","yes"]
["RX Summ--Surg Oth 98-02","rxSummSurgOth9802","Tumor","Treatment-1st Course",1648,1,"yes","conditional","Required for DX Year < 2003"]
["RX Summ--Surg Oth Reg/Dis","rxSummSurgOthRegDis","Tumor","Treatment-1st Course",1294,1,"yes","yes"]
["RX Summ--Surg Prim Site 03-2022","rxSummSurgPrimSite","Tumor","Treatment-1st Course",1290,2,"yes","conditional","Required for DX Year 2003-2022"]
["RX Summ--Surg Prim Site 2023","rxSummSurgPrimSite2023","Tumor","Treatment-1st Course",1291,4,"yes","conditional","Required for DX Year 2023 forward"]
["RX Summ--Surg Site 98-02","rxSummSurgSite9802","Tumor","Treatment-1st Course",1646,2,"yes","conditional","Required for DX Year < 2003"]
["RX Summ--Surg/Rad Seq","rxSummSurgRadSeq","Tumor","Treatment-1st Course",1380,1,"yes","yes"]
["RX Summ--Surgery Type","rxSummSurgeryType","Tumor","Treatment-1st Course",1640,2,"no","no"]
["RX Summ--Surgical Approch","rxSummSurgicalApproch","Tumor","Treatment-1st Course",1310,1,"no","no"]
["RX Summ--Surgical Margins","rxSummSurgicalMargins","Tumor","Treatment-1st Course",1320,1,"yes","yes*"]
["RX Summ--Systemic Sur Seq","rxSummSystemicSurSeq","Tumor","Treatment-1st Course",1639,1,"yes","yes"]
["RX Summ--Transplnt/Endocr","rxSummTransplntEndocr","Tumor","Treatment-1st Course",3250,2,"yes","yes"]
["RX Summ--Treatment Status","rxSummTreatmentStatus","Tumor","Treatment-1st Course",1285,1,"yes","yes"]
["Total Dose","totalDose","Tumor","Treatment-1st Course",1533,6,"yes","conditional","Required as available for DX Year 2018 forward"]
["Subsq RX 2nd Course BRM","subsqRx2ndCourseBrm","Tumor","Treatment-Subsequent & Other",1675,1,"no","no","Not captured by the CCR",null,"NAACCR item 1675 is a subset of NAACCR item 1670."]
["Subsq RX 2nd Course Chemo","subsqRx2ndCourseChemo","Tumor","Treatment-Subsequent & Other",1673,1,"no","no","Not captured by the CCR",null,"NAACCR item 1673 is a subset of NAACCR item 1670."]
["Subsq RX 2nd Course Date","subsqRx2ndCourseDate","Tumor","Treatment-Subsequent & Other",1660,8,"no","no","Not captured by the CCR"]
["Subsq RX 2nd Course Horm","subsqRx2ndCourseHorm","Tumor","Treatment-Subsequent & Other",1674,1,"no","no","Not captured by the CCR",null,"NAACCR item 1674 is a subset of NAACCR item 1670."]
["Subsq RX 2nd Course Oth","subsqRx2ndCourseOth","Tumor","Treatment-Subsequent & Other",1676,1,"no","no","Not captured by the CCR",null,"NAACCR item 1676 is a subset of NAACCR item 1670."]
["Subsq RX 2nd Course Rad","subsqRx2ndCourseRad","Tumor","Treatment-Subsequent & Other",1672,1,"no","no","Not captured by the CCR",null,"NAACCR item 1672 is a subset of NAACCR item 1670."]
["Subsq RX 2nd Course Surg","subsqRx2ndCourseSurg","Tumor","Treatment-Subsequent & Other",1671,2,"no","no","Not captured by the CCR",null,"NAACCR item 1671 is a subset of NAACCR item 1670."]
["Subsq RX 2nd--Reg LN Rem","subsqRx2ndRegLnRem","Tumor","Treatment-Subsequent & Other",1679,2,"no","no","Not captured by the CCR",null,"NAACCR item 1679 is a subset of NAACCR item 1670."]
["Subsq RX 2nd--Scope LN SU","subsqRx2ndScopeLnSu","Tumor","Treatment-Subsequent & Other",1677,1,"no","no","Not captured by the CCR",null,"NAACCR item 1677 is a subset of NAACCR item 1670."]
["Subsq RX 2nd--Surg Oth","subsqRx2ndSurgOth","Tumor","Treatment-Subsequent & Other",1678,1,"no","no","Not captured by the CCR",null,"NAACCR item 1678 is a subset of NAACCR item 1670."]
["Subsq RX 3rd Course BRM","subsqRx3rdCourseBrm","Tumor","Treatment-Subsequent & Other",1695,1,"no","no","Not captured by the CCR",null,"NAACCR item 1695 is a subset of NAACCR item 1690."]
["Subsq RX 3rd Course Chemo","subsqRx3rdCourseChemo","Tumor","Treatment-Subsequent & Other",1693,1,"no","no","Not captured by the CCR",null,"NAACCR item 1693 is a subset of NAACCR item 1690."]
["Subsq RX 3rd Course Date","subsqRx3rdCourseDate","Tumor","Treatment-Subsequent & Other",1680,8,"no","no","Not captured by the CCR"]
["Subsq RX 3rd Course Horm","subsqRx3rdCourseHorm","Tumor","Treatment-Subsequent & Other",1694,1,"no","no","Not captured by the CCR",null,"NAACCR item 1694 is a subset of NAACCR item 1690."]
["Subsq RX 3rd Course Oth","subsqRx3rdCourseOth","Tumor","Treatment-Subsequent & Other",1696,1,"no","no","Not captured by the CCR",null,"NAACCR item 1696 is a subset of NAACCR item 1690."]
["Subsq RX 3rd Course Rad","subsqRx3rdCourseRad","Tumor","Treatment-Subsequent & Other",1692,1,"no","no","Not captured by the CCR",null,"NAACCR item 1692 is a subset of NAACCR item 1690."]
["Subsq RX 3rd Course Surg","subsqRx3rdCourseSurg","Tumor","Treatment-Subsequent & Other",1691,2,"no","no","Not captured by the CCR",null,"NAACCR item 1691 is a subset of NAACCR item 1690."]
["Subsq RX 3rd--Reg LN Rem","subsqRx3rdRegLnRem","Tumor","Treatment-Subsequent & Other",1699,2,"no","no","Not captured by the CCR",null,"NAACCR item 1699 is a subset of NAACCR item 1690."]
["Subsq RX 3rd--Scope LN Su","subsqRx3rdScopeLnSu","Tumor","Treatment-Subsequent & Other",1697,1,"no","no","Not captured by the CCR",null,"NAACCR item 1697 is a subset of NAACCR item 1690."]
["Subsq RX 3rd--Surg Oth","subsqRx3rdSurgOth","Tumor","Treatment-Subsequent & Other",1698,1,"no","no","Not captured by the CCR",null,"NAACCR item 1698 is a subset of NAACCR item 1690."]
["Subsq RX 4th Course BRM","subsqRx4thCourseBrm","Tumor","Treatment-Subsequent & Other",1715,1,"no","no","Not captured by the CCR",null,"Item 1715 is a subset of item 1710."]
["Subsq RX 4th Course Chemo","subsqRx4thCourseChemo","Tumor","Treatment-Subsequent & Other",1713,1,"no","no","Not captured by the CCR",null,"Item 1713 is a subset of item 1710."]
["Subsq RX 4th Course Date","subsqRx4thCourseDate","Tumor","Treatment-Subsequent & Other",1700,8,"no","no","Not captured by the CCR"]
["Subsq RX 4th Course Horm","subsqRx4thCourseHorm","Tumor","Treatment-Subsequent & Other",1714,1,"no","no","Not captured by the CCR",null,"Item 1714 is a subset of item 1710."]
["Subsq RX 4th Course Oth","subsqRx4thCourseOth","Tumor","Treatment-Subsequent & Other",1716,1,"no","no","Not captured by the CCR",null,"Item 1716 is a subset of item 1710."]
["Subsq RX 4th Course Rad","subsqRx4thCourseRad","Tumor","Treatment-Subsequent & Other",1712,1,"no","no","Not captured by the CCR",null,"Item 1712 is a subset of item 1710."]
["Subsq RX 4th Course Surg","subsqRx4thCourseSurg","Tumor","Treatment-Subsequent & Other",1711,2,"no","no","Not captured by the CCR",null,"Item 1711 is a subset of item 1710."]
["Subsq RX 4th--Reg LN Rem","subsqRx4thRegLnRem","Tumor","Treatment-Subsequent & Other",1719,2,"no","no","Not captured by the CCR",null,"Item 1719 is a subset of item 1710."]
["Subsq RX 4th--Scope LN Su","subsqRx4thScopeLnSu","Tumor","Treatment-Subsequent & Other",1717,1,"no","no","Not captured by the CCR",null,"Item 1717 is a subset of item 1710."]
["Subsq RX 4th--Surg Oth","subsqRx4thSurgOth","Tumor","Treatment-Subsequent & Other",1718,1,"no","no","Not captured by the CCR",null,"Item 1718 is a subset of item 1710."]

{"sheet":"D-Deletion Record","index":3,"n_rows":657,"n_cols":7,"rows_kept":657}
["Appendix D: Deletion Record"]
["Data Item Name","CCR\nIdentifier","NAACCR\nIdentifier","Col\nStart","Col\nEnd","Length","CCR Required from\nReporting Facility Software"]
["Record Type [D]","E1000",10,1,1,1,"yes, gen by facility"]
["Record Version [L]","E1003",50,{"$f":"E3+1","v":2},{"$f":"E3+F4","v":2},1,"yes, gen by facility"]
["Reporting Facility","E1081",540,{"$f":"E4+1","v":3},{"$f":"E4+F5","v":12},10,"yes"]
["Coding Proc","E1576",70000,{"$f":"E5+1","v":13},{"$f":"E5+F6","v":14},2,"yes, gen by facility"]
["Accession Number--Hosp","E1084",550,15,23,9,"yes"]
["Sequence Number Hospital","E1085",560,24,25,2,"yes"]
["Hospital Tumor Number CCR","E1571",70014,26,27,2,"yes, gen by facility"]
["Hosp Pat Number","E1743",70013,28,39,12,"yes, gen by facility"]
["Patient ID Number ","E1007",20,40,47,8,"yes*"]
["Tumor Record Number","E1006",60,48,49,2,"yes*"]
["Medical Record Number","E1645",2300,50,64,15,"yes*"]
["Social Security Number","E1647",2320,65,73,9,"yes*"]
["SSN Suffix","E1565",70048,74,75,2,"yes*"]
["Name--Last","E1637",2230,76,115,40,"yes"]
["Name--First","E1638",2240,116,155,40,"yes"]
["Date of Birth","E1033",240,156,163,8,"yes"]
["Sex","E1031",220,164,164,1,"yes"]
["Sex Assigned at Birth",null,225,{"$f":"E18+1","v":164},{"$f":"E18+F20","v":164},1,"yes"]
["Primary Site","E1055",400,{"$f":"E19+1","v":165},{"$f":"E19+F21","v":168},4,"yes"]
["Laterality","E1056",410,169,169,1,"yes"]
["Histology (92-00) ICD-O-2","E1058",420,170,173,4,"yes"]
["Behavior (92-00) ICD-O-2","E1059",430,174,174,1,"yes"]
["Date of Diagnosis","E1053",390,175,182,8,"yes"]
["Histologic Type - ICD-O-3","E1061",522,{"$f":"E25+1","v":183},{"$f":"E25+F26","v":186},4,"yes"]
["Behavior Code - ICD-O-3","E1062",523,187,187,1,"yes"]
["Transmit Vendor Version","E1589",70057,{"$f":"E27+1","v":188},{"$f":"E27+F28","v":197},10,"yes, gen by facility"]
["Record Area: Deletion Fields"]
["Date of 1st Contact","E1087",580,{"$f":"E28+1","v":198},{"$f":"E28 +F30","v":205},8,"yes"]
["Text - Transaction Remarks","E1759","none",{"$f":"E30+1","v":206},{"$f":"E30+F31","v":355},150,"yes"]
["Reserved","none","none",{"$f":"E31+1","v":356},{"$f":"E31+F32","v":365},10,"yes"]
{"$rows_empty":620}
["Reserved"]
[]
[]
[]
["Reserved"]

{"sheet":"S-Follow-Up Record","index":4,"n_rows":656,"n_cols":7,"rows_kept":656}
["Appendix S: Shared Follow-Up Record Layout"]
["Data Item Name","CCR Identifier","NAACCR Identifier","Col\nStart","Col\nEnd","Length","CCR Required from Reporting Facility Software (mostly from Appendix A; included here for reference)"]
["Record Type [S]","E1000",10,1,1,1," gen by CCR"]
["Record Version [T]","E1003",50,{"$f":"E3+1","v":2},{"$f":"E3+F4","v":2},1,"gen by CCR"]
["Reporting Facility","E1081",540,{"$f":"E4+1","v":3},12,10,"yes"]
["Coding Proc","E1576",70000,13,14,2,"yes, gen by facility"]
["Accession Number--Hosp","E1084",550,15,23,9,"yes"]
["Sequence Number--Hospital","E1085",560,24,25,2,"yes"]
["Hospital Tumor Number CCR","E1571",70014,26,27,2,"yes, gen by facility"]
["Hosp Pat No","E1743",70013,28,{"$f":"E9+F10","v":39},12,"yes, gen by facility"]
["Patient ID Number","E1007",20,40,47,8,"yes*"]
["Tumor Record Number","E1006",60,48,49,2,"yes*"]
["Medical Record Number","E1645",2300,50,64,15,"yes*"]
["Social Security Number","E1647",2320,65,73,9,"yes*"]
["SSN Suffix","E1565",70048,74,75,2,"yes*"]
["Name--Last","E1637",2230,76,115,40,"yes"]
["Name--First","E1638",2240,116,155,40,"yes"]
["Date of Birth","E1033",240,156,163,8,"yes"]
["Sex","E1031",220,164,164,1,"yes"]
["Sex Assigned at Birth",null,225,{"$f":"E18+1","v":164},{"$f":"E18+F20","v":164},1,"yes"]
["Primary Site","E1055",400,{"$f":"E19+1","v":165},{"$f":"E19+F21","v":168},4,"yes"]
["Laterality","E1056",410,169,169,1,"yes"]
["Histology (92-00) ICD-O-2","E1058",420,170,173,4,"yes"]
["Behavior (92-00) ICD-O-2","E1059",430,174,174,1,"yes"]
["Date of Diagnosis","E1053",390,175,182,8,"yes"]
["Histologic Type - ICD-O-3","E1061",522,{"$f":"E25+1","v":183},{"$f":"E25+F26","v":186},4,"yes"]
["Behavior Code - ICD-O-3","E1062",523,187,187,1,"yes"]
["Transmit Vendor Version","E1589",70057,{"$f":"E27+1","v":188},197,10,"yes, gen by facility"]
["Record Area: Follow-Up"]
["Reserved","none","none",{"$f":"E28+1","v":198},{"$f":"E28+F30","v":212},15]
["Date of Last Contact","E1516",1750,{"$f":"E30+1","v":213},{"$f":"E30+F31","v":220},8,"yes"]
["Vital Status","E1518",1760,{"$f":"E31+1","v":221},{"$f":"E31+F32","v":221},1,"yes"]
["Date of Last Cancer (tumor) Status","E1896",1772,222,{"$f":"E32+F33","v":229},8,"yes"]
["Cancer Status","E1519",1770,{"$f":"E33+1","v":230},{"$f":"E33+F34","v":230},1,"yes"]
["Follow-Up Hospital Last","E1628",2430,231,240,10,"yes"]
["Reserved","none","none",241,245,5,"yes"]
["Follow-Up Last Type (Patient)","E1580",70010,246,247,2,"yes"]
["Follow-Up Last Type (Tumor)","E1584",70011,248,249,2,"yes"]
["Reserved for Expansion","none","none",{"$f":"E38+1","v":250},{"$f":"E38+F39","v":254},5]
["Follow-Up Next Type","E1581",70012,255,255,1,"yes*"]
["Physician--Follow-Up","E1668",2470,256,263,8,"yes*"]
["Cause of Death","E1534",1910,264,267,4,"may"]
["Place of Death - State","E1773",1942,268,269,2,"yes*"]
["[blank]","none","none",270,{"$f":"E43+F44","v":270},1,"N/A"]
["Date Case Last Changed","E1483",2100,271,{"$f":"E44+F45","v":278},8,"yes, gen by facility"]
["DC State File Number","E1653",2380,279,290,12,"may"]
["Contact Name","E1740",70001,291,350,60,"yes*"]
["Addr Current--No & Street","E1650",2350,351,410,60,"yes*"]
["Addr Current--Supplementl","E1651",2355,411,470,60,"yes*"]
["Addr Current--City","E1523",1810,471,520,50,"yes*"]
["Addr Current--State","E1524",1820,521,522,2,"yes*"]
["Addr Current--Postal Code","E1525",1830,523,531,9,"yes*"]
["Telephone","E1652",2360,{"$f":"E52+1","v":532},541,10,"yes*"]
["No Patient Contact Flag","E2137",1854,542,542,1,"yes"]
["Follow-Up Contact--Name","E1654",2394,543,{"$f":"E54+F55","v":602},60,"yes*"]
["Follow-Up Contact--No&St","E1655",2392,603,662,60,"yes*"]
["Follow-Up Contact--Suppl","E1656",2393,663,722,60,"yes*"]
["Follow-Up Contact--City","E1531",1842,723,772,50,"yes*"]
["Follow-Up Contact--State","E1532",1844,773,774,2,"yes*"]
["Follow-Up Contact--Postal","E1533",1846,775,783,9,"yes*"]
["Place of Death - Country","E1774",1944,784,786,3,"yes*"]
["Addr Current - Country","E1769",1832,787,789,3,"yes*"]
["Followup Contact - Country","E1772",1847,790,792,3,"yes*"]
["Reserved","none","none",793,{"$f":"E63+F64","v":795},3]
{"$rows_empty":587}
["Reserved"]
[]
[]
[]
["Reserved"]